Effective Date,Department,Supplier Name,Payment Date,Amount **,Purpose of Spend,Merchant Category,Card Transaction
Statement 18/07/2015 to 17/08/2015,Adults and Communities,Amazon Svcs Europe SAR,23/07/2015,7.54,Books - General,Book Stores,GPC
Statement 18/07/2015 to 17/08/2015,Adults and Communities,Amazon Svcs Europe SAR,03/08/2015,21.00,Books - General,Book Stores,GPC
Statement 18/07/2015 to 17/08/2015,Adults and Communities,Amazon Svcs Europe SAR,05/08/2015,25.99,General Equipment - General,Book Stores,GPC
Statement 18/07/2015 to 17/08/2015,Adults and Communities,Amazon Svcs Europe SAR,05/08/2015,7.46,Other Equipment & Materials - General,Book Stores,GPC
Statement 18/07/2015 to 17/08/2015,Adults and Communities,Amazon Svcs Europe SAR,30/07/2015,8.26,Personal Needs of Clients - General,Book Stores,GPC
Statement 18/07/2015 to 17/08/2015,Adults and Communities,Amazon Svcs Europe SAR,29/07/2015,23.00,Stationery - General,Book Stores,GPC
Statement 18/07/2015 to 17/08/2015,Adults and Communities,Amazon UK Marketplace,20/07/2015,19.30,Books - General,Miscellaneous and Specialty Retail Stores,GPC
Statement 18/07/2015 to 17/08/2015,Adults and Communities,Amazon UK Marketplace,26/07/2015,3.48,Books - General,Book Stores,GPC
Statement 18/07/2015 to 17/08/2015,Adults and Communities,Amazon UK Marketplace,04/08/2015,34.06,Books - General,Book Stores,GPC
Statement 18/07/2015 to 17/08/2015,Adults and Communities,Amazon UK Marketplace,04/08/2015,4.28,Books - General,Book Stores,GPC
Statement 18/07/2015 to 17/08/2015,Adults and Communities,Amazon UK Marketplace,10/08/2015,17.40,Books - General,Book Stores,GPC
Statement 18/07/2015 to 17/08/2015,Adults and Communities,Amazon UK Marketplace,12/08/2015,7.49,Books - General,Book Stores,GPC
Statement 18/07/2015 to 17/08/2015,Adults and Communities,Amazon UK Marketplace,23/07/2015,26.64,General Equipment - General,Miscellaneous and Specialty Retail Stores,GPC
Statement 18/07/2015 to 17/08/2015,Adults and Communities,Amazon UK Marketplace,24/07/2015,6.52,General Equipment - General,Miscellaneous and Specialty Retail Stores,GPC
Statement 18/07/2015 to 17/08/2015,Adults and Communities,Amazon UK Marketplace,27/07/2015,8.13,General Equipment - General,Miscellaneous and Specialty Retail Stores,GPC
Statement 18/07/2015 to 17/08/2015,Adults and Communities,Amazon UK Marketplace,10/08/2015,9.82,General Equipment - General,Miscellaneous and Specialty Retail Stores,GPC
Statement 18/07/2015 to 17/08/2015,Adults and Communities,Amazon UK Marketplace,17/07/2015,7.87,Materials - General,Miscellaneous and Specialty Retail Stores,GPC
Statement 18/07/2015 to 17/08/2015,Adults and Communities,Amazon UK Marketplace,22/07/2015,8.51,Materials - General,Miscellaneous and Specialty Retail Stores,GPC
Statement 18/07/2015 to 17/08/2015,Adults and Communities,Amazon UK Marketplace,31/07/2015,24.98,Materials - General,Miscellaneous and Specialty Retail Stores,GPC
Statement 18/07/2015 to 17/08/2015,Adults and Communities,Amazon UK Marketplace,11/08/2015,30.61,Materials - General,Miscellaneous and Specialty Retail Stores,GPC
Statement 18/07/2015 to 17/08/2015,Adults and Communities,Amazon UK Marketplace,11/08/2015,15.45,Materials - General,Miscellaneous and Specialty Retail Stores,GPC
Statement 18/07/2015 to 17/08/2015,Adults and Communities,Amazon UK Marketplace,11/08/2015,19.43,Materials - General,Miscellaneous and Specialty Retail Stores,GPC
Statement 18/07/2015 to 17/08/2015,Adults and Communities,Amazon UK Marketplace,13/08/2015,56.23,Operational Equipment - General,Miscellaneous and Specialty Retail Stores,GPC
Statement 18/07/2015 to 17/08/2015,Adults and Communities,Amazon UK Marketplace,03/08/2015,2.57,Other Equipment & Materials - General,Book Stores,GPC
Statement 18/07/2015 to 17/08/2015,Adults and Communities,Amazon UK Marketplace,06/08/2015,4.35,Stationery - General,Miscellaneous and Specialty Retail Stores,GPC
Statement 18/07/2015 to 17/08/2015,Adults and Communities,Amazon UK Retail,29/07/2015,62.51,General Equipment - General,Direct Marketers - Other,GPC
Statement 18/07/2015 to 17/08/2015,Adults and Communities,Amazon UK Retail,18/07/2015,12.49,Materials - General,Direct Marketers - Other,GPC
Statement 18/07/2015 to 17/08/2015,Adults and Communities,Amazon UK Retail,25/07/2015,8.33,Materials - General,Direct Marketers - Other,GPC
Statement 18/07/2015 to 17/08/2015,Adults and Communities,Amazon UK Retail,01/08/2015,8.33,Materials - General,Direct Marketers - Other,GPC
Statement 18/07/2015 to 17/08/2015,Adults and Communities,Amazon UK Retail,22/07/2015,27.96,Other Expenditure - General,Direct Marketers - Other,GPC
Statement 18/07/2015 to 17/08/2015,Adults and Communities,Amazon UK Retail,24/07/2015,11.94,Other Expenditure - General,Direct Marketers - Other,GPC
Statement 18/07/2015 to 17/08/2015,Adults and Communities,Amazon UK Retail,24/07/2015,53.48,Other Expenditure - General,Direct Marketers - Other,GPC
Statement 18/07/2015 to 17/08/2015,Adults and Communities,Amazon UK Retail,20/07/2015,40.92,Stationery - General,Direct Marketers - Other,GPC
Statement 18/07/2015 to 17/08/2015,Adults and Communities,Amazon UK Retail,26/07/2015,30.00,Stationery - General,Direct Marketers - Other,GPC
Statement 18/07/2015 to 17/08/2015,Adults and Communities,Amazon UK Retail,30/07/2015,44.81,Stationery - General,Direct Marketers - Other,GPC
Statement 18/07/2015 to 17/08/2015,Adults and Communities,Amazon UK Retail,05/08/2015,19.41,Stationery - General,Direct Marketers - Other,GPC
Statement 18/07/2015 to 17/08/2015,Adults and Communities,ARGOS LTD,17/07/2015,63.32,Aids & Adaptations - Minor Adaptations,Discount Stores,GPC
Statement 18/07/2015 to 17/08/2015,Adults and Communities,ARGOS LTD,03/08/2015,177.58,Furniture - General,Discount Stores,GPC
Statement 18/07/2015 to 17/08/2015,Adults and Communities,ARGOS LTD,27/07/2015,32.29,General Equipment - General,Discount Stores,GPC
Statement 18/07/2015 to 17/08/2015,Adults and Communities,ARGOS LTD,04/08/2015,79.15,General Equipment - General,Discount Stores,GPC
Statement 18/07/2015 to 17/08/2015,Adults and Communities,ASDA STORES,27/07/2015,5.95,Materials - General,"Grocery Stores, Supermarkets",GPC
Statement 18/07/2015 to 17/08/2015,Adults and Communities,ASDA STORES 4477,26/07/2015,15.00,Materials - General,"Grocery Stores, Supermarkets",GPC
Statement 18/07/2015 to 17/08/2015,Adults and Communities,ASDA STORES 4477,03/08/2015,2.67,Materials - General,"Grocery Stores, Supermarkets",GPC
Statement 18/07/2015 to 17/08/2015,Adults and Communities,ASDA STORES 4477,03/08/2015,6.00,Materials - General,"Grocery Stores, Supermarkets",GPC
Statement 18/07/2015 to 17/08/2015,Adults and Communities,ASDA STORES 4477,10/08/2015,2.67,Materials - General,"Grocery Stores, Supermarkets",GPC
Statement 18/07/2015 to 17/08/2015,Adults and Communities,ASDA STORES 4477,12/08/2015,0.75,Materials - General,"Grocery Stores, Supermarkets",GPC
Statement 18/07/2015 to 17/08/2015,Adults and Communities,ASDA STORES 4477,24/07/2015,54.38,Provisions - General,"Grocery Stores, Supermarkets",GPC
Statement 18/07/2015 to 17/08/2015,Adults and Communities,ASDA SUPERSTORE,28/07/2015,9.87,Materials - General,"Grocery Stores, Supermarkets",GPC
Statement 18/07/2015 to 17/08/2015,Adults and Communities,ASDA SUPERSTORE,13/08/2015,20.00,Personal Needs of Clients - General,"Grocery Stores, Supermarkets",GPC
Statement 18/07/2015 to 17/08/2015,Adults and Communities,B & Q,24/07/2015,9.95,Aids & Adaptations - Minor Adaptations,"Building Materials, Lumber Stores",GPC
Statement 18/07/2015 to 17/08/2015,Adults and Communities,B & Q,30/07/2015,15.83,Aids & Adaptations - Minor Adaptations,"Building Materials, Lumber Stores",GPC
Statement 18/07/2015 to 17/08/2015,Adults and Communities,B & Q,04/08/2015,38.34,General Equipment - General,"Building Materials, Lumber Stores",GPC
Statement 18/07/2015 to 17/08/2015,Adults and Communities,B & Q,07/08/2015,29.16,General Equipment - General,"Building Materials, Lumber Stores",GPC
Statement 18/07/2015 to 17/08/2015,Adults and Communities,B & Q,23/07/2015,20.00,R & M of Buildings - General,"Building Materials, Lumber Stores",GPC
Statement 18/07/2015 to 17/08/2015,Adults and Communities,B & Q,14/08/2015,57.03,R & M of Buildings - General,"Building Materials, Lumber Stores",GPC
Statement 18/07/2015 to 17/08/2015,Adults and Communities,B&M RETAIL LTD,20/07/2015,16.02,Provisions - General,Discount Stores,GPC
Statement 18/07/2015 to 17/08/2015,Adults and Communities,BLAIR PROSPECT LTD,27/07/2015,18.35,Other Equipment & Materials - General,Laboratory/Medical/Dental/Ophthalmic Hospital Equi,GPC
Statement 18/07/2015 to 17/08/2015,Adults and Communities,BOC TEL ORDER,23/07/2015,4.74,General Equipment - General,Chemicals and Allied Products Not Elsewhere Classi,GPC
Statement 18/07/2015 to 17/08/2015,Adults and Communities,BOC TEL ORDER,13/08/2015,4.74,General Equipment - General,Chemicals and Allied Products Not Elsewhere Classi,GPC
Statement 18/07/2015 to 17/08/2015,Adults and Communities,BROUGHTON NEWS (SPAR),24/07/2015,100.00,Newspapers & Periodicals - General,"Miscellaneous Food Stores-Convenience Stores, Mark",GPC
Statement 18/07/2015 to 17/08/2015,Adults and Communities,BROUGHTON NEWS (SPAR),24/07/2015,192.50,Newspapers & Periodicals - General,"Miscellaneous Food Stores-Convenience Stores, Mark",GPC
Statement 18/07/2015 to 17/08/2015,Adults and Communities,BUNNY & CLARKE,13/08/2015,12.30,Other Expenditure - General,Fast-Food Restaurants (Quick Payment Service Pilot,GPC
Statement 18/07/2015 to 17/08/2015,Adults and Communities,BUTLINS HOLIDAYS,06/08/2015,250.00,Subsistence - General,"Lodging-Hotels, Motels, Resorts",GPC
Statement 18/07/2015 to 17/08/2015,Adults and Communities,BUTLINS HOLIDAYS,06/08/2015,51.00,Subsistence - General,"Lodging-Hotels, Motels, Resorts",GPC
Statement 18/07/2015 to 17/08/2015,Adults and Communities,CANVA.COM,08/08/2015,0.65,Printing - General,Photographic Studios,GPC
Statement 18/07/2015 to 17/08/2015,Adults and Communities,CARTRIDGESAVE.CO.UK,07/08/2015,34.66,Stationery - General,"Stationery, Office, and School Supply Stores",GPC
Statement 18/07/2015 to 17/08/2015,Adults and Communities,CENTRAL ENG COOP,12/08/2015,27.49,Consultants & Specialists - General,Department Stores,GPC
Statement 18/07/2015 to 17/08/2015,Adults and Communities,CENTRAL ENG COOP,13/08/2015,12.50,Consultants & Specialists - General,Department Stores,GPC
Statement 18/07/2015 to 17/08/2015,Adults and Communities,CENTRAL ENG COOP,17/07/2015,61.69,Provisions - General,Department Stores,GPC
Statement 18/07/2015 to 17/08/2015,Adults and Communities,CENTRAL ENG COOP,18/07/2015,32.72,Provisions - General,Department Stores,GPC
Statement 18/07/2015 to 17/08/2015,Adults and Communities,CENTRAL ENG COOP,19/07/2015,11.56,Provisions - General,Department Stores,GPC
Statement 18/07/2015 to 17/08/2015,Adults and Communities,CENTRAL ENG COOP,25/07/2015,6.28,Provisions - General,Department Stores,GPC
Statement 18/07/2015 to 17/08/2015,Adults and Communities,CENTRAL ENG COOP,25/07/2015,1.09,Provisions - General,Department Stores,GPC
Statement 18/07/2015 to 17/08/2015,Adults and Communities,CENTRAL ENG COOP,26/07/2015,11.61,Provisions - General,Department Stores,GPC
Statement 18/07/2015 to 17/08/2015,Adults and Communities,CENTRAL ENG COOP,27/07/2015,17.96,Provisions - General,Department Stores,GPC
Statement 18/07/2015 to 17/08/2015,Adults and Communities,CENTRAL ENG COOP,28/07/2015,18.23,Provisions - General,Department Stores,GPC
Statement 18/07/2015 to 17/08/2015,Adults and Communities,CENTRAL ENG COOP,28/07/2015,21.15,Provisions - General,Department Stores,GPC
Statement 18/07/2015 to 17/08/2015,Adults and Communities,CENTRAL ENG COOP,30/07/2015,12.71,Provisions - General,Department Stores,GPC
Statement 18/07/2015 to 17/08/2015,Adults and Communities,CENTRAL ENG COOP,08/08/2015,99.92,Provisions - General,Department Stores,GPC
Statement 18/07/2015 to 17/08/2015,Adults and Communities,CENTRAL ENG COOP,08/08/2015,9.98,Provisions - General,Department Stores,GPC
Statement 18/07/2015 to 17/08/2015,Adults and Communities,CENTRAL ENG COOP,10/08/2015,34.64,Provisions - General,Department Stores,GPC
Statement 18/07/2015 to 17/08/2015,Adults and Communities,CENTRAL ENG COOP,13/08/2015,4.91,Provisions - General,Department Stores,GPC
Statement 18/07/2015 to 17/08/2015,Adults and Communities,CHARNWOOD BOROUGH COUNCI,17/07/2015,4.90,Casual/Essential - General,Automobile Parking Lots and Garages,GPC
Statement 18/07/2015 to 17/08/2015,Adults and Communities,CHURCHILL CATERING LTD,06/08/2015,4.45,Provisions - General,Fast-Food Restaurants (Quick Payment Service Pilot,GPC
Statement 18/07/2015 to 17/08/2015,Adults and Communities,COALVILLE YELLOW CABS,04/08/2015,53.00,Casual/Essential - Casual,Taxicabs and Limousines,GPC
Statement 18/07/2015 to 17/08/2015,Adults and Communities,CORPUS CHRISTI COL,07/08/2015,61.20,Display/Conservn/Exhibitions - Conservation,"Colleges, Universities, Professional Schools, and",GPC
Statement 18/07/2015 to 17/08/2015,Adults and Communities,COSTA COFFEE,22/07/2015,4.45,Subsistence - General,"Eating Places, Restaurants",GPC
Statement 18/07/2015 to 17/08/2015,Adults and Communities,COSTA COFFEE,07/08/2015,6.35,Subsistence - General,"Eating Places, Restaurants",GPC
Statement 18/07/2015 to 17/08/2015,Adults and Communities,CROSS COUNTRY,29/07/2015,5.95,Public Transport -  Staff - General,Passenger Railways,GPC
Statement 18/07/2015 to 17/08/2015,Adults and Communities,DUNELM (SOFT FURNISHIN,14/08/2015,40.77,Materials - General,"Drapery, Window Coverings, and Upholstery Stores",GPC
Statement 18/07/2015 to 17/08/2015,Adults and Communities,EASTMIDLANDSTRAINS,23/07/2015,103.50,Public Transport -  Staff - General,Passenger Railways,GPC
Statement 18/07/2015 to 17/08/2015,Adults and Communities,EASTMIDLANDSTRAINS,05/08/2015,5.60,Public Transport -  Staff - General,Passenger Railways,GPC
Statement 18/07/2015 to 17/08/2015,Adults and Communities,EDGINGTON ENTERPRI,06/08/2015,12.25,Provisions - General,"Eating Places, Restaurants",GPC
Statement 18/07/2015 to 17/08/2015,Adults and Communities,ESC EUROPE LIMITED,22/07/2015,10.00,Materials - General,Tent and Awning Shops,GPC
Statement 18/07/2015 to 17/08/2015,Adults and Communities,FABLE,21/07/2015,52.00,Other Services - General,Charitable and Social Service Organizations,GPC
Statement 18/07/2015 to 17/08/2015,Adults and Communities,FAST KEY SERVICES,28/07/2015,8.66,Other Equipment & Materials - General,Business Services-Not Elsewhere Classified,GPC
Statement 18/07/2015 to 17/08/2015,Adults and Communities,FOREIGN EXCHANGE FEE,10/08/2015,0.02,Printing - General,Misc-Unknown,GPC
Statement 18/07/2015 to 17/08/2015,Adults and Communities,FOXTON LOCKS INN,13/08/2015,41.25,Other Expenditure - General,"Eating Places, Restaurants",GPC
Statement 18/07/2015 to 17/08/2015,Adults and Communities,FURNITURE CLINIC,12/08/2015,37.95,Contract Cleaning - General,"Cleaning and Maintenance, Janitorial Services",GPC
Statement 18/07/2015 to 17/08/2015,Adults and Communities,GRO HM PASSPORT OFFICE,17/07/2015,23.40,Other Expenditure - General,Government Services-Not Elsewhere Classified,GPC
Statement 18/07/2015 to 17/08/2015,Adults and Communities,HALFORDS 0428,22/07/2015,83.33,Materials - General,Bicycle Shops-Sales and Service,GPC
Statement 18/07/2015 to 17/08/2015,Adults and Communities,HALFORDS 0428,22/07/2015,4.17,Materials - General,Bicycle Shops-Sales and Service,GPC
Statement 18/07/2015 to 17/08/2015,Adults and Communities,HALFORDS 0428,23/07/2015,83.33,Materials - General,Bicycle Shops-Sales and Service,GPC
Statement 18/07/2015 to 17/08/2015,Adults and Communities,HALFORDS 0428,23/07/2015,4.17,Materials - General,Bicycle Shops-Sales and Service,GPC
Statement 18/07/2015 to 17/08/2015,Adults and Communities,HALFORDS 0968,08/08/2015,11.59,Operational Equipment - General,Bicycle Shops-Sales and Service,GPC
Statement 18/07/2015 to 17/08/2015,Adults and Communities,HARLOW BROS LTD,06/08/2015,96.65,R & M of Buildings - General,"Building Materials, Lumber Stores",GPC
Statement 18/07/2015 to 17/08/2015,Adults and Communities,ICELAND,18/07/2015,36.39,Provisions - General,"Grocery Stores, Supermarkets",GPC
Statement 18/07/2015 to 17/08/2015,Adults and Communities,ICELAND,30/07/2015,34.50,Provisions - General,"Grocery Stores, Supermarkets",GPC
Statement 18/07/2015 to 17/08/2015,Adults and Communities,ICELAND,30/07/2015,2.69,Provisions - General,"Grocery Stores, Supermarkets",GPC
Statement 18/07/2015 to 17/08/2015,Adults and Communities,ICELAND,08/08/2015,24.70,Provisions - General,"Grocery Stores, Supermarkets",GPC
Statement 18/07/2015 to 17/08/2015,Adults and Communities,ICELAND,13/08/2015,7.00,Provisions - General,"Grocery Stores, Supermarkets",GPC
Statement 18/07/2015 to 17/08/2015,Adults and Communities,IZ  Cafe Torte,14/08/2015,4.50,Client/Volunteers - General,"Eating Places, Restaurants",GPC
Statement 18/07/2015 to 17/08/2015,Adults and Communities,JEWSON 4328,24/07/2015,27.04,Aids & Adaptations - Minor Adaptations,"Building Materials, Lumber Stores",GPC
Statement 18/07/2015 to 17/08/2015,Adults and Communities,LCC CATERING SERVICES,11/08/2015,3.60,Other Expenditure - General,Government Services-Not Elsewhere Classified,GPC
Statement 18/07/2015 to 17/08/2015,Adults and Communities,LEIC CITY COUNCIL,10/08/2015,13.00,Other Expenditure - General,Government Services-Not Elsewhere Classified,GPC
Statement 18/07/2015 to 17/08/2015,Adults and Communities,MARKS & SPENCER,24/07/2015,4.00,Materials - General,"Grocery Stores, Supermarkets",GPC
Statement 18/07/2015 to 17/08/2015,Adults and Communities,MAUDESPORT LTD,31/07/2015,31.31,Other Equipment & Materials - General,Sporting Goods Stores,GPC
Statement 18/07/2015 to 17/08/2015,Adults and Communities,MBFG,04/08/2015,11.25,Other Equipment & Materials - General,Chemicals and Allied Products Not Elsewhere Classi,GPC
Statement 18/07/2015 to 17/08/2015,Adults and Communities,MERCURY NEWS 63917/453,05/08/2015,132.56,Newspapers & Periodicals - General,"Grocery Stores, Supermarkets",GPC
Statement 18/07/2015 to 17/08/2015,Adults and Communities,MERCURY NEWS 63933,04/08/2015,80.90,Newspapers & Periodicals - General,"Grocery Stores, Supermarkets",GPC
Statement 18/07/2015 to 17/08/2015,Adults and Communities,NATIONAL PORTRAIT,28/07/2015,11.66,Other Equipment & Materials - General,Miscellaneous Publishing and  Printing,GPC
Statement 18/07/2015 to 17/08/2015,Adults and Communities,NCP LIMITED,18/07/2015,8.00,Casual/Essential - General,Automobile Parking Lots and Garages,GPC
Statement 18/07/2015 to 17/08/2015,Adults and Communities,NORTHWOOD,14/08/2015,500.00,Schools Agency staff - Teaching Staff,Professional Services-Not Elsewhere Classified,GPC
Statement 18/07/2015 to 17/08/2015,Adults and Communities,OCADO RETAIL LIMIT,20/07/2015,98.27,Provisions - General,"Miscellaneous Food Stores-Convenience Stores, Mark",GPC
Statement 18/07/2015 to 17/08/2015,Adults and Communities,OCADO RETAIL LIMIT,23/07/2015,77.38,Provisions - General,"Miscellaneous Food Stores-Convenience Stores, Mark",GPC
Statement 18/07/2015 to 17/08/2015,Adults and Communities,OCADO RETAIL LIMIT,28/07/2015,69.43,Provisions - General,"Miscellaneous Food Stores-Convenience Stores, Mark",GPC
Statement 18/07/2015 to 17/08/2015,Adults and Communities,OCADO RETAIL LIMIT,30/07/2015,139.65,Provisions - General,"Miscellaneous Food Stores-Convenience Stores, Mark",GPC
Statement 18/07/2015 to 17/08/2015,Adults and Communities,OCADO RETAIL LIMIT,03/08/2015,62.12,Provisions - General,"Miscellaneous Food Stores-Convenience Stores, Mark",GPC
Statement 18/07/2015 to 17/08/2015,Adults and Communities,OCADO RETAIL LIMIT,06/08/2015,75.24,Provisions - General,"Miscellaneous Food Stores-Convenience Stores, Mark",GPC
Statement 18/07/2015 to 17/08/2015,Adults and Communities,OCADO RETAIL LIMIT,10/08/2015,84.85,Provisions - General,"Miscellaneous Food Stores-Convenience Stores, Mark",GPC
Statement 18/07/2015 to 17/08/2015,Adults and Communities,OCADO RETAIL LIMIT,13/08/2015,54.99,Provisions - General,"Miscellaneous Food Stores-Convenience Stores, Mark",GPC
Statement 18/07/2015 to 17/08/2015,Adults and Communities,PAYPAL  ACQUIESSELI,31/07/2015,2.89,Other Equipment & Materials - General,Family Clothing Stores,GPC
Statement 18/07/2015 to 17/08/2015,Adults and Communities,PAYPAL  ASHOP888,03/08/2015,-1.59,Other Equipment & Materials - General,Miscellaneous Apparel and Accessory Stores,GPC
Statement 18/07/2015 to 17/08/2015,Adults and Communities,PAYPAL  AWESOMEBKS,28/07/2015,2.59,Books - General,Book Stores,GPC
Statement 18/07/2015 to 17/08/2015,Adults and Communities,PAYPAL  BEADESAURUS,27/07/2015,4.18,Other Equipment & Materials - General,"Artist Supply Stores, Craft Shops",GPC
Statement 18/07/2015 to 17/08/2015,Adults and Communities,PAYPAL  BMONLINETRA,31/07/2015,8.34,Other Equipment & Materials - General,Miscellaneous Apparel and Accessory Stores,GPC
Statement 18/07/2015 to 17/08/2015,Adults and Communities,PAYPAL  BUYSEND.COM,31/07/2015,7.49,Other Equipment & Materials - General,Variety Stores,GPC
Statement 18/07/2015 to 17/08/2015,Adults and Communities,PAYPAL  DANDYREEVES,31/07/2015,3.35,Other Equipment & Materials - General,"Artist Supply Stores, Craft Shops",GPC
Statement 18/07/2015 to 17/08/2015,Adults and Communities,PAYPAL  DANNYHARKNE,04/08/2015,3.48,Other Equipment & Materials - General,Miscellaneous and Specialty Retail Stores,GPC
Statement 18/07/2015 to 17/08/2015,Adults and Communities,PAYPAL  DAWNSTOBBAR,31/07/2015,5.59,Other Equipment & Materials - General,"Hobby, Toy, and Game Shops",GPC
Statement 18/07/2015 to 17/08/2015,Adults and Communities,PAYPAL  DF,05/08/2015,16.48,Other Equipment & Materials - General,Children's and Infants' Wear Stores,GPC
Statement 18/07/2015 to 17/08/2015,Adults and Communities,PAYPAL  DOITYOURSEL,27/07/2015,2.98,Other Equipment & Materials - General,Home Supply Warehouse,GPC
Statement 18/07/2015 to 17/08/2015,Adults and Communities,PAYPAL  DUDDERSSTUF,31/07/2015,3.20,Other Equipment & Materials - General,"Hobby, Toy, and Game Shops",GPC
Statement 18/07/2015 to 17/08/2015,Adults and Communities,PAYPAL  HOME FUSION,31/07/2015,1.99,Other Equipment & Materials - General,Antique Shops,GPC
Statement 18/07/2015 to 17/08/2015,Adults and Communities,PAYPAL  KALINKA MKT,31/07/2015,2.99,Other Equipment & Materials - General,Miscellaneous and Specialty Retail Stores,GPC
Statement 18/07/2015 to 17/08/2015,Adults and Communities,PAYPAL  PARTY4MELTD,27/07/2015,3.25,Other Equipment & Materials - General,Children's and Infants' Wear Stores,GPC
Statement 18/07/2015 to 17/08/2015,Adults and Communities,PAYPAL  PUBWORLDMEM,31/07/2015,17.99,Other Equipment & Materials - General,Miscellaneous and Specialty Retail Stores,GPC
Statement 18/07/2015 to 17/08/2015,Adults and Communities,PAYPAL  RSIDNEY,31/07/2015,2.49,Other Equipment & Materials - General,Family Clothing Stores,GPC
Statement 18/07/2015 to 17/08/2015,Adults and Communities,PAYPAL  SANDRADUNCA,31/07/2015,2.08,Other Equipment & Materials - General,Miscellaneous and Specialty Retail Stores,GPC
Statement 18/07/2015 to 17/08/2015,Adults and Communities,PAYPAL  SHAMZLTDUK,20/07/2015,17.97,Other Services - General,Hardware Stores,GPC
Statement 18/07/2015 to 17/08/2015,Adults and Communities,PAYPAL  SMBGUERIN,28/07/2015,4.89,Other Equipment & Materials - General,Miscellaneous and Specialty Retail Stores,GPC
Statement 18/07/2015 to 17/08/2015,Adults and Communities,PAYPAL  TOYS RANDOM,31/07/2015,9.34,Other Equipment & Materials - General,"Artist Supply Stores, Craft Shops",GPC
Statement 18/07/2015 to 17/08/2015,Adults and Communities,PAYPAL  TRACY DIXON,31/07/2015,9.00,Other Equipment & Materials - General,Children's and Infants' Wear Stores,GPC
Statement 18/07/2015 to 17/08/2015,Adults and Communities,PAYPAL  XUJIALIANG,31/07/2015,1.08,Other Equipment & Materials - General,Variety Stores,GPC
Statement 18/07/2015 to 17/08/2015,Adults and Communities,PONDEN HOME,17/07/2015,90.00,General Equipment - General,Miscellaneous House Furnishing Specialty Shops,GPC
Statement 18/07/2015 to 17/08/2015,Adults and Communities,PONDEN HOME,24/07/2015,220.40,General Equipment - General,Miscellaneous House Furnishing Specialty Shops,GPC
Statement 18/07/2015 to 17/08/2015,Adults and Communities,POST OFFICE COUNTER,22/07/2015,63.00,Postal Services - General,Postage Stamps,GPC
Statement 18/07/2015 to 17/08/2015,Adults and Communities,POST OFFICE COUNTER,04/08/2015,8.60,Postal Services - General,Postage Stamps,GPC
Statement 18/07/2015 to 17/08/2015,Adults and Communities,POST OFFICE COUNTER,12/08/2015,78.36,Postal Services - General,Postage Stamps,GPC
Statement 18/07/2015 to 17/08/2015,Adults and Communities,POST OFFICE COUNTER,14/08/2015,0.95,Postal Services - General,Postage Stamps,GPC
Statement 18/07/2015 to 17/08/2015,Adults and Communities,PREMIER INN44016505,11/08/2015,66.00,Personal Needs of Clients - General,PREMIER TRAVEL,GPC
Statement 18/07/2015 to 17/08/2015,Adults and Communities,PREMIER MOBILITY (UK),13/08/2015,24.70,Operational Equipment - General,Laboratory/Medical/Dental/Ophthalmic Hospital Equi,GPC
Statement 18/07/2015 to 17/08/2015,Adults and Communities,PUB WORLD MEMORABI,31/07/2015,12.45,Other Equipment & Materials - General,Miscellaneous General Merchandise Stores,GPC
Statement 18/07/2015 to 17/08/2015,Adults and Communities,RNIB CHARITY,31/07/2015,17.98,Other Equipment & Materials - General,Laboratory/Medical/Dental/Ophthalmic Hospital Equi,GPC
Statement 18/07/2015 to 17/08/2015,Adults and Communities,ROYAL MAIL,07/08/2015,108.00,Postal Services - General,Postage Stamps,GPC
Statement 18/07/2015 to 17/08/2015,Adults and Communities,RYMAN,22/07/2015,37.12,Stationery - General,"Stationery, Office, and School Supply Stores",GPC
Statement 18/07/2015 to 17/08/2015,Adults and Communities,RYMAN,29/07/2015,55.89,Stationery - General,"Stationery, Office, and School Supply Stores",GPC
Statement 18/07/2015 to 17/08/2015,Adults and Communities,RYMAN,15/08/2015,13.61,Stationery - General,"Stationery, Office, and School Supply Stores",GPC
Statement 18/07/2015 to 17/08/2015,Adults and Communities,SAINSBURYS LOCAL,20/07/2015,10.40,Materials - General,"Grocery Stores, Supermarkets",GPC
Statement 18/07/2015 to 17/08/2015,Adults and Communities,Sainsburys S/mkts,17/07/2015,75.42,Aids & Adaptations - Minor Adaptations,"Grocery Stores, Supermarkets",GPC
Statement 18/07/2015 to 17/08/2015,Adults and Communities,SAINSBURYS S/MKTS,09/08/2015,13.80,Consultants & Specialists - General,"Grocery Stores, Supermarkets",GPC
Statement 18/07/2015 to 17/08/2015,Adults and Communities,Sainsburys S/mkts,17/07/2015,2.50,Materials - General,"Grocery Stores, Supermarkets",GPC
Statement 18/07/2015 to 17/08/2015,Adults and Communities,SAINSBURYS S/MKTS,11/08/2015,10.15,Materials - General,"Grocery Stores, Supermarkets",GPC
Statement 18/07/2015 to 17/08/2015,Adults and Communities,SAM INTERNATIONAL,24/07/2015,14.28,Stationery - General,"Stationary, Office Supplies, Printing and Writing",GPC
Statement 18/07/2015 to 17/08/2015,Adults and Communities,SCREWFIX,22/07/2015,79.32,Aids & Adaptations - Minor Adaptations,"Building Materials, Lumber Stores",GPC
Statement 18/07/2015 to 17/08/2015,Adults and Communities,SCREWFIX,23/07/2015,16.66,Aids & Adaptations - Minor Adaptations,"Building Materials, Lumber Stores",GPC
Statement 18/07/2015 to 17/08/2015,Adults and Communities,SCREWFIX,24/07/2015,14.16,Aids & Adaptations - Minor Adaptations,"Building Materials, Lumber Stores",GPC
Statement 18/07/2015 to 17/08/2015,Adults and Communities,SETON,28/07/2015,66.00,Other Equipment & Materials - General,Durable Goods Not Elsewhere Classified,GPC
Statement 18/07/2015 to 17/08/2015,Adults and Communities,SMITH BROTHERS STORES,21/07/2015,58.63,Aids & Adaptations - Minor Adaptations,"Heating, Plumbing, Air Conditioning Contractors",GPC
Statement 18/07/2015 to 17/08/2015,Adults and Communities,SMITH BROTHERS STORES,21/07/2015,83.34,Aids & Adaptations - Minor Adaptations,"Heating, Plumbing, Air Conditioning Contractors",GPC
Statement 18/07/2015 to 17/08/2015,Adults and Communities,SMITH BROTHERS STORES,21/07/2015,83.34,Aids & Adaptations - Minor Adaptations,"Heating, Plumbing, Air Conditioning Contractors",GPC
Statement 18/07/2015 to 17/08/2015,Adults and Communities,SNOW BUSINESS INT,07/08/2015,10.45,Other Equipment & Materials - General,Business Services-Not Elsewhere Classified,GPC
Statement 18/07/2015 to 17/08/2015,Adults and Communities,SPARES SUPPLY COMPANY,22/07/2015,16.66,R & M of Buildings - General,Electrical Parts and Equipment,GPC
Statement 18/07/2015 to 17/08/2015,Adults and Communities,STUART WESTMORELAN,20/07/2015,500.00,General Equipment - General,"Furniture, Home Furnishings and Equipment Stores,",GPC
Statement 18/07/2015 to 17/08/2015,Adults and Communities,STUART WESTMORELAN,20/07/2015,304.98,General Equipment - General,"Furniture, Home Furnishings and Equipment Stores,",GPC
Statement 18/07/2015 to 17/08/2015,Adults and Communities,SURVEYMONKEY.COM,12/08/2015,26.00,Publicity/Marketing - General,Computer Network/Information Services,GPC
Statement 18/07/2015 to 17/08/2015,Adults and Communities,TALKTALK BUSINESS,21/07/2015,103.07,Telephones - General,Telecommunication Service Including Local and Long,GPC
Statement 18/07/2015 to 17/08/2015,Adults and Communities,TESCO STORES 2044,31/07/2015,15.38,Materials - General,"Grocery Stores, Supermarkets",GPC
Statement 18/07/2015 to 17/08/2015,Adults and Communities,TESCO STORES 5182,01/08/2015,78.00,Cleaning Materials - General,"Grocery Stores, Supermarkets",GPC
Statement 18/07/2015 to 17/08/2015,Adults and Communities,TESCO STORES 5182,21/07/2015,60.51,Provisions - General,"Grocery Stores, Supermarkets",GPC
Statement 18/07/2015 to 17/08/2015,Adults and Communities,TESCO STORES 5182,24/07/2015,172.44,Provisions - General,"Grocery Stores, Supermarkets",GPC
Statement 18/07/2015 to 17/08/2015,Adults and Communities,TESCO STORES 5182,27/07/2015,158.03,Provisions - General,"Grocery Stores, Supermarkets",GPC
Statement 18/07/2015 to 17/08/2015,Adults and Communities,TESCO STORES 5182,31/07/2015,214.78,Provisions - General,"Grocery Stores, Supermarkets",GPC
Statement 18/07/2015 to 17/08/2015,Adults and Communities,TESCO STORES 5182,03/08/2015,146.68,Provisions - General,"Grocery Stores, Supermarkets",GPC
Statement 18/07/2015 to 17/08/2015,Adults and Communities,TESCO STORES 5182,06/08/2015,152.51,Provisions - General,"Grocery Stores, Supermarkets",GPC
Statement 18/07/2015 to 17/08/2015,Adults and Communities,TESCO STORES 5182,10/08/2015,131.91,Provisions - General,"Grocery Stores, Supermarkets",GPC
Statement 18/07/2015 to 17/08/2015,Adults and Communities,TESCO STORES 5182,14/08/2015,95.04,Provisions - General,"Grocery Stores, Supermarkets",GPC
Statement 18/07/2015 to 17/08/2015,Adults and Communities,THE BOOK PEOPLE,21/07/2015,30.51,Books - General,Book Stores,GPC
Statement 18/07/2015 to 17/08/2015,Adults and Communities,THE POST OFFICE,23/07/2015,1.26,Postal Services - General,Postage Stamps,GPC
Statement 18/07/2015 to 17/08/2015,Adults and Communities,THE RANGE,23/07/2015,6.58,Materials - General,Department Stores,GPC
Statement 18/07/2015 to 17/08/2015,Adults and Communities,TRAINLINE.COM,11/08/2015,65.79,Casual/Essential - General,Passenger Railways,GPC
Statement 18/07/2015 to 17/08/2015,Adults and Communities,W BOYES & CO LTD COALV,28/07/2015,5.47,Other Equipment & Materials - General,Discount Stores,GPC
Statement 18/07/2015 to 17/08/2015,Adults and Communities,W M MORRISONS CAFE,29/07/2015,4.68,Provisions - General,"Eating Places, Restaurants",GPC
Statement 18/07/2015 to 17/08/2015,Adults and Communities,W M MORRISONS CAFE,12/08/2015,4.68,Provisions - General,"Eating Places, Restaurants",GPC
Statement 18/07/2015 to 17/08/2015,Adults and Communities,W M MORRISONS CAFE,12/08/2015,6.24,Subsistence - General,"Eating Places, Restaurants",GPC
Statement 18/07/2015 to 17/08/2015,Adults and Communities,WATERSTONES,18/07/2015,8.99,Books - General,Book Stores,GPC
Statement 18/07/2015 to 17/08/2015,Adults and Communities,WATERSTONES,18/07/2015,37.96,Books - General,Book Stores,GPC
Statement 18/07/2015 to 17/08/2015,Adults and Communities,WATERSTONES,07/08/2015,250.00,Books - General,Book Stores,GPC
Statement 18/07/2015 to 17/08/2015,Adults and Communities,WATERSTONES,07/08/2015,250.00,Books - General,Book Stores,GPC
Statement 18/07/2015 to 17/08/2015,Adults and Communities,WATERSTONES,07/08/2015,4.89,Books - General,Book Stores,GPC
Statement 18/07/2015 to 17/08/2015,Adults and Communities,WEALD AND DOWNLAND,10/08/2015,50.00,Public Transport -  Staff - General,RECREATION SERVICES--NOT ELSEWHERE CLASSIFIED,GPC
Statement 18/07/2015 to 17/08/2015,Adults and Communities,WICKES,04/08/2015,24.94,Other Expenditure - General,"Building Materials, Lumber Stores",GPC
Statement 18/07/2015 to 17/08/2015,Adults and Communities,WICKES,12/08/2015,8.64,Other Expenditure - General,"Building Materials, Lumber Stores",GPC
Statement 18/07/2015 to 17/08/2015,Adults and Communities,WICKES HINCKLEY,09/08/2015,2.74,Operational Equipment - General,"Building Materials, Lumber Stores",GPC
Statement 18/07/2015 to 17/08/2015,Adults and Communities,WILKO RETAIL LIMIT,27/07/2015,24.00,General Equipment - General,Household Appliance Stores,GPC
Statement 18/07/2015 to 17/08/2015,Adults and Communities,WILKO RETAIL LIMIT,04/08/2015,17.54,General Equipment - General,Household Appliance Stores,GPC
Statement 18/07/2015 to 17/08/2015,Adults and Communities,WILKO RETAIL LIMIT,29/07/2015,4.15,Materials - General,Household Appliance Stores,GPC
Statement 18/07/2015 to 17/08/2015,Adults and Communities,WILKO RETAIL LIMIT,12/08/2015,23.07,Materials - General,Household Appliance Stores,GPC
Statement 18/07/2015 to 17/08/2015,Adults and Communities,WM MORRISON 054,28/07/2015,18.36,Client/Volunteers - General,"Grocery Stores, Supermarkets",GPC
Statement 18/07/2015 to 17/08/2015,Adults and Communities,WM MORRISON 054,21/07/2015,31.20,Materials - General,"Grocery Stores, Supermarkets",GPC
Statement 18/07/2015 to 17/08/2015,Adults and Communities,WM MORRISON 054,28/07/2015,20.70,Materials - General,"Grocery Stores, Supermarkets",GPC
Statement 18/07/2015 to 17/08/2015,Adults and Communities,WM MORRISON 054,03/08/2015,8.76,Materials - General,"Grocery Stores, Supermarkets",GPC
Statement 18/07/2015 to 17/08/2015,Adults and Communities,WM MORRISON 054,12/08/2015,21.64,Materials - General,"Grocery Stores, Supermarkets",GPC
Statement 18/07/2015 to 17/08/2015,Adults and Communities,WM MORRISON 054,20/07/2015,35.92,Provisions - General,"Grocery Stores, Supermarkets",GPC
Statement 18/07/2015 to 17/08/2015,Adults and Communities,WM MORRISON 054,23/07/2015,106.99,Provisions - General,"Grocery Stores, Supermarkets",GPC
Statement 18/07/2015 to 17/08/2015,Adults and Communities,WM MORRISON 054,24/07/2015,107.03,Provisions - General,"Grocery Stores, Supermarkets",GPC
Statement 18/07/2015 to 17/08/2015,Adults and Communities,WM MORRISON 054,29/07/2015,125.59,Provisions - General,"Grocery Stores, Supermarkets",GPC
Statement 18/07/2015 to 17/08/2015,Adults and Communities,WM MORRISON 054,31/07/2015,96.12,Provisions - General,"Grocery Stores, Supermarkets",GPC
Statement 18/07/2015 to 17/08/2015,Adults and Communities,WM MORRISON 054,06/08/2015,107.80,Provisions - General,"Grocery Stores, Supermarkets",GPC
Statement 18/07/2015 to 17/08/2015,Adults and Communities,WM MORRISON 054,12/08/2015,88.75,Provisions - General,"Grocery Stores, Supermarkets",GPC
Statement 18/07/2015 to 17/08/2015,Adults and Communities,WM MORRISON 054,12/08/2015,33.95,Provisions - General,"Grocery Stores, Supermarkets",GPC
Statement 18/07/2015 to 17/08/2015,Adults and Communities,WM MORRISON 054,15/08/2015,104.08,Provisions - General,"Grocery Stores, Supermarkets",GPC
Statement 18/07/2015 to 17/08/2015,Adults and Communities,WM MORRISONS,07/08/2015,18.92,Materials - General,"Grocery Stores, Supermarkets",GPC
Statement 18/07/2015 to 17/08/2015,Adults and Communities,WM MORRISONS,23/07/2015,17.00,Provisions - General,"Grocery Stores, Supermarkets",GPC
Statement 18/07/2015 to 17/08/2015,Adults and Communities,WM MORRISONS,24/07/2015,13.47,Provisions - General,"Grocery Stores, Supermarkets",GPC
Statement 18/07/2015 to 17/08/2015,Adults and Communities,WM MORRISONS,07/08/2015,48.50,Provisions - General,"Grocery Stores, Supermarkets",GPC
Statement 18/07/2015 to 17/08/2015,Adults and Communities,WM MORRISONS,14/08/2015,17.46,Provisions - General,"Grocery Stores, Supermarkets",GPC
Statement 18/07/2015 to 17/08/2015,Adults and Communities,WP-STAMPS DIRECT L,23/07/2015,146.10,Stationery - General,"Stationery, Office, and School Supply Stores",GPC
Statement 18/07/2015 to 17/08/2015,Adults and Communities,WWW.ALZPRODUCTS.CO.UK,31/07/2015,43.97,Other Equipment & Materials - General,Orthopedic Goods-Artificial Limb Stores,GPC
Statement 18/07/2015 to 17/08/2015,Adults and Communities,WWW.EAST2EDEN.CO.UK,22/07/2015,23.99,Materials - General,Discount Stores,GPC
Statement 18/07/2015 to 17/08/2015,Adults and Communities,WWW.FILMBANK.CO.UK,24/07/2015,126.58,Materials - General,Motion Picture and Video Tape Production,GPC
Statement 18/07/2015 to 17/08/2015,Adults and Communities,WWW.FILMBANK.CO.UK,03/08/2015,97.00,Materials - General,Motion Picture and Video Tape Production,GPC
Statement 18/07/2015 to 17/08/2015,Adults and Communities,WWW.HEALTHANDCARE.CO.U,27/07/2015,19.99,Other Equipment & Materials - General,Laboratory/Medical/Dental/Ophthalmic Hospital Equi,GPC
Statement 18/07/2015 to 17/08/2015,Adults and Communities,WWW.KNOCKONWOOD.CO.UK,21/07/2015,15.70,Other Equipment & Materials - General,"Music Stores-Musical Instruments, Pianos, Sheet Mu",GPC
Statement 18/07/2015 to 17/08/2015,Adults and Communities,WWW.MULITCOLOUR.INFO,29/07/2015,105.99,Printing - General,Miscellaneous Publishing and  Printing,GPC
Statement 18/07/2015 to 17/08/2015,Adults and Communities,WWW.MULITCOLOUR.INFO,13/08/2015,61.99,Printing - General,Miscellaneous Publishing and  Printing,GPC
Statement 18/07/2015 to 17/08/2015,Adults and Communities,WWW.NEOPOST.CO.UK,20/07/2015,355.60,General Equipment - General,"Stationary, Office Supplies, Printing and Writing",GPC
Statement 18/07/2015 to 17/08/2015,Adults and Communities,WWW.PROP4SHOWS.O.UK,23/07/2015,35.34,Other Equipment & Materials - General,Miscellaneous Apparel and Accessory Stores,GPC
Statement 18/07/2015 to 17/08/2015,Adults and Communities,WWW.SIGN-HOLDERS.CO.UK,28/07/2015,33.00,Materials - General,Miscellaneous and Specialty Retail Stores,GPC
Statement 18/07/2015 to 17/08/2015,Adults and Communities,WWW.THESAFETYCENTRE.CO,03/08/2015,17.88,General Equipment - General,"Glass, Paint, Wallpaper Stores",GPC
Statement 18/07/2015 to 17/08/2015,Adults and Communities,WWW.THEWORKS.CO.UK,21/07/2015,11.96,Books - General,Book Stores,GPC
Statement 18/07/2015 to 17/08/2015,Adults and Communities,WWW.VIKING-DIRECT.CO.U,17/07/2015,96.98,Stationery - General,"Stationary, Office Supplies, Printing and Writing",GPC
Statement 18/07/2015 to 17/08/2015,Adults and Communities,WWW.WILDGOOSE.AC,13/08/2015,268.91,Books - General,Miscellaneous Publishing and  Printing,GPC
Statement 18/07/2015 to 17/08/2015,Adults and Communities,WWW.ZEN.CO.UK,28/07/2015,34.76,Telephones - General,Computer Network/Information Services,GPC
Statement 18/07/2015 to 17/08/2015,C&YPS-Non Delegated,ALDI,13/08/2015,52.34,Materials - General,"Grocery Stores, Supermarkets",GPC
Statement 18/07/2015 to 17/08/2015,C&YPS-Non Delegated,ALDI,27/07/2015,22.52,Other Expenditure - General,"Grocery Stores, Supermarkets",GPC
Statement 18/07/2015 to 17/08/2015,C&YPS-Non Delegated,ALDI,22/07/2015,82.80,Provisions - General,"Grocery Stores, Supermarkets",GPC
Statement 18/07/2015 to 17/08/2015,C&YPS-Non Delegated,ALDI,06/08/2015,28.42,Provisions - General,"Grocery Stores, Supermarkets",GPC
Statement 18/07/2015 to 17/08/2015,C&YPS-Non Delegated,ALDI,10/08/2015,80.82,Provisions - General,"Grocery Stores, Supermarkets",GPC
Statement 18/07/2015 to 17/08/2015,C&YPS-Non Delegated,ALLPAY.NET VISA AND MAST,29/07/2015,51.00,Other Services - General,Charitable and Social Service Organizations,GPC
Statement 18/07/2015 to 17/08/2015,C&YPS-Non Delegated,Amazon Svcs Europe SAR,14/08/2015,34.21,Materials - General,Book Stores,GPC
Statement 18/07/2015 to 17/08/2015,C&YPS-Non Delegated,Amazon Svcs Europe SAR,20/07/2015,-18.98,Other Equipment & Materials - General,Book Stores,GPC
Statement 18/07/2015 to 17/08/2015,C&YPS-Non Delegated,Amazon Svcs Europe SAR,30/07/2015,3.47,Other Equipment & Materials - General,Book Stores,GPC
Statement 18/07/2015 to 17/08/2015,C&YPS-Non Delegated,Amazon Svcs Europe SAR,31/07/2015,5.92,Other Equipment & Materials - General,Book Stores,GPC
Statement 18/07/2015 to 17/08/2015,C&YPS-Non Delegated,Amazon Svcs Europe SAR,03/08/2015,16.89,Other Equipment & Materials - General,Book Stores,GPC
Statement 18/07/2015 to 17/08/2015,C&YPS-Non Delegated,Amazon Svcs Europe SAR,10/08/2015,3.99,Other Equipment & Materials - General,Book Stores,GPC
Statement 18/07/2015 to 17/08/2015,C&YPS-Non Delegated,Amazon Svcs Europe SAR,11/08/2015,2.50,Other Equipment & Materials - General,Book Stores,GPC
Statement 18/07/2015 to 17/08/2015,C&YPS-Non Delegated,Amazon Svcs Europe SAR,22/07/2015,15.81,Other Expenditure - General,Book Stores,GPC
Statement 18/07/2015 to 17/08/2015,C&YPS-Non Delegated,Amazon UK Marketplace,04/08/2015,2.97,IT Equipment - General,Miscellaneous and Specialty Retail Stores,GPC
Statement 18/07/2015 to 17/08/2015,C&YPS-Non Delegated,Amazon UK Marketplace,12/08/2015,2.28,Materials - General,Miscellaneous and Specialty Retail Stores,GPC
Statement 18/07/2015 to 17/08/2015,C&YPS-Non Delegated,Amazon UK Marketplace,12/08/2015,8.09,Materials - General,Miscellaneous and Specialty Retail Stores,GPC
Statement 18/07/2015 to 17/08/2015,C&YPS-Non Delegated,Amazon UK Marketplace,13/08/2015,2.19,Materials - General,Miscellaneous and Specialty Retail Stores,GPC
Statement 18/07/2015 to 17/08/2015,C&YPS-Non Delegated,Amazon UK Marketplace,13/08/2015,8.95,Materials - General,Miscellaneous and Specialty Retail Stores,GPC
Statement 18/07/2015 to 17/08/2015,C&YPS-Non Delegated,Amazon UK Marketplace,13/08/2015,1.99,Materials - General,Miscellaneous and Specialty Retail Stores,GPC
Statement 18/07/2015 to 17/08/2015,C&YPS-Non Delegated,Amazon UK Marketplace,29/07/2015,16.66,Other Equipment & Materials - General,Miscellaneous and Specialty Retail Stores,GPC
Statement 18/07/2015 to 17/08/2015,C&YPS-Non Delegated,Amazon UK Marketplace,30/07/2015,2.81,Other Equipment & Materials - General,Book Stores,GPC
Statement 18/07/2015 to 17/08/2015,C&YPS-Non Delegated,Amazon UK Marketplace,30/07/2015,2.81,Other Equipment & Materials - General,Book Stores,GPC
Statement 18/07/2015 to 17/08/2015,C&YPS-Non Delegated,Amazon UK Marketplace,30/07/2015,2.81,Other Equipment & Materials - General,Book Stores,GPC
Statement 18/07/2015 to 17/08/2015,C&YPS-Non Delegated,Amazon UK Marketplace,30/07/2015,2.81,Other Equipment & Materials - General,Book Stores,GPC
Statement 18/07/2015 to 17/08/2015,C&YPS-Non Delegated,Amazon UK Marketplace,30/07/2015,3.85,Other Equipment & Materials - General,Book Stores,GPC
Statement 18/07/2015 to 17/08/2015,C&YPS-Non Delegated,Amazon UK Marketplace,31/07/2015,16.04,Other Equipment & Materials - General,Miscellaneous and Specialty Retail Stores,GPC
Statement 18/07/2015 to 17/08/2015,C&YPS-Non Delegated,Amazon UK Marketplace,05/08/2015,132.99,Other Equipment & Materials - General,Miscellaneous and Specialty Retail Stores,GPC
Statement 18/07/2015 to 17/08/2015,C&YPS-Non Delegated,Amazon UK Marketplace,10/08/2015,11.80,Other Equipment & Materials - General,Miscellaneous and Specialty Retail Stores,GPC
Statement 18/07/2015 to 17/08/2015,C&YPS-Non Delegated,Amazon UK Marketplace,11/08/2015,2.79,Other Equipment & Materials - General,Miscellaneous and Specialty Retail Stores,GPC
Statement 18/07/2015 to 17/08/2015,C&YPS-Non Delegated,Amazon UK Marketplace,22/07/2015,17.31,Other Expenditure - General,Miscellaneous and Specialty Retail Stores,GPC
Statement 18/07/2015 to 17/08/2015,C&YPS-Non Delegated,Amazon UK Retail,24/07/2015,14.41,Other Equipment & Materials - General,Direct Marketers - Other,GPC
Statement 18/07/2015 to 17/08/2015,C&YPS-Non Delegated,Amazon UK Retail,27/07/2015,17.70,Other Equipment & Materials - General,Direct Marketers - Other,GPC
Statement 18/07/2015 to 17/08/2015,C&YPS-Non Delegated,Amazon UK Retail,30/07/2015,-3.30,Other Equipment & Materials - General,Direct Marketers - Other,GPC
Statement 18/07/2015 to 17/08/2015,C&YPS-Non Delegated,Amazon UK Retail,13/08/2015,10.54,Other Equipment & Materials - General,Direct Marketers - Other,GPC
Statement 18/07/2015 to 17/08/2015,C&YPS-Non Delegated,AMF BOWLING,18/07/2015,35.70,Personal Needs of Clients - Holidays & Outings,"Membership Clubs (Sports, Recreation, Athletic), C",GPC
Statement 18/07/2015 to 17/08/2015,C&YPS-Non Delegated,AMFBOWLING.CO.UK,03/08/2015,20.20,Public Transport -  Staff - General,"Membership Clubs (Sports, Recreation, Athletic), C",GPC
Statement 18/07/2015 to 17/08/2015,C&YPS-Non Delegated,ARGOS LTD,03/08/2015,33.24,Materials - General,Discount Stores,GPC
Statement 18/07/2015 to 17/08/2015,C&YPS-Non Delegated,ARGOS LTD,04/08/2015,151.44,Materials - General,Discount Stores,GPC
Statement 18/07/2015 to 17/08/2015,C&YPS-Non Delegated,ARGOS LTD,04/08/2015,21.84,Materials - General,Discount Stores,GPC
Statement 18/07/2015 to 17/08/2015,C&YPS-Non Delegated,ARGOS LTD,20/07/2015,15.98,Other Transfer Payments - Section 23 Grants,Discount Stores,GPC
Statement 18/07/2015 to 17/08/2015,C&YPS-Non Delegated,ARGOS RETAIL GROUP,24/07/2015,398.77,Other Equipment & Materials - General,Discount Stores,GPC
Statement 18/07/2015 to 17/08/2015,C&YPS-Non Delegated,ASDA STORES,30/07/2015,14.70,Subsistence - General,"Grocery Stores, Supermarkets",GPC
Statement 18/07/2015 to 17/08/2015,C&YPS-Non Delegated,ASDA STORES 4477,06/08/2015,3.02,Provisions - General,"Grocery Stores, Supermarkets",GPC
Statement 18/07/2015 to 17/08/2015,C&YPS-Non Delegated,ASDA STORES 4533,23/07/2015,9.62,Other Equipment & Materials - General,"Grocery Stores, Supermarkets",GPC
Statement 18/07/2015 to 17/08/2015,C&YPS-Non Delegated,ASDA STORES 4798,23/07/2015,8.20,Subsistence - General,"Grocery Stores, Supermarkets",GPC
Statement 18/07/2015 to 17/08/2015,C&YPS-Non Delegated,ASDA SUPERSTORE,07/08/2015,18.29,Personal Needs of Clients - General,"Grocery Stores, Supermarkets",GPC
Statement 18/07/2015 to 17/08/2015,C&YPS-Non Delegated,ASDA SUPERSTORE,27/07/2015,136.74,Provisions - General,"Grocery Stores, Supermarkets",GPC
Statement 18/07/2015 to 17/08/2015,C&YPS-Non Delegated,ASDA SUPERSTORE,03/08/2015,128.22,Provisions - General,"Grocery Stores, Supermarkets",GPC
Statement 18/07/2015 to 17/08/2015,C&YPS-Non Delegated,ASDA SUPERSTORE,03/08/2015,151.90,Provisions - General,"Grocery Stores, Supermarkets",GPC
Statement 18/07/2015 to 17/08/2015,C&YPS-Non Delegated,ASDA SUPERSTORE,10/08/2015,138.13,Provisions - General,"Grocery Stores, Supermarkets",GPC
Statement 18/07/2015 to 17/08/2015,C&YPS-Non Delegated,ASDA SUPERSTORE,24/07/2015,3.80,Subsistence - General,"Grocery Stores, Supermarkets",GPC
Statement 18/07/2015 to 17/08/2015,C&YPS-Non Delegated,B & Q,29/07/2015,33.34,Materials - General,"Building Materials, Lumber Stores",GPC
Statement 18/07/2015 to 17/08/2015,C&YPS-Non Delegated,B&M Retail,12/08/2015,53.81,Materials - General,Discount Stores,GPC
Statement 18/07/2015 to 17/08/2015,C&YPS-Non Delegated,B&Q,11/08/2015,25.72,Other Equipment & Materials - General,"Building Materials, Lumber Stores",GPC
Statement 18/07/2015 to 17/08/2015,C&YPS-Non Delegated,BOOTS MARKET,30/07/2015,15.00,General Equipment - General,"Drug Stores, Pharmacies",GPC
Statement 18/07/2015 to 17/08/2015,C&YPS-Non Delegated,BOSWORTH WATER TRU,03/08/2015,236.67,Other Equipment & Materials - General,"Utilities-Electric, Gas, Sanitary, Water",GPC
Statement 18/07/2015 to 17/08/2015,C&YPS-Non Delegated,BT BILL PAYMENT 1,17/07/2015,3.60,Telephones - General,Telecommunication Equipment Including Telephone Sa,GPC
Statement 18/07/2015 to 17/08/2015,C&YPS-Non Delegated,BT BILL PAYMENT 1,17/07/2015,71.97,Telephones - General,Telecommunication Equipment Including Telephone Sa,GPC
Statement 18/07/2015 to 17/08/2015,C&YPS-Non Delegated,BT BILL PAYMENT 1,31/07/2015,49.89,Telephones - General,Telecommunication Equipment Including Telephone Sa,GPC
Statement 18/07/2015 to 17/08/2015,C&YPS-Non Delegated,BT BILL PAYMENT 1,31/07/2015,49.64,Telephones - General,Telecommunication Equipment Including Telephone Sa,GPC
Statement 18/07/2015 to 17/08/2015,C&YPS-Non Delegated,BT BILL PAYMENT 1,31/07/2015,11.56,Telephones - General,Telecommunication Equipment Including Telephone Sa,GPC
Statement 18/07/2015 to 17/08/2015,C&YPS-Non Delegated,BT BILL PAYMENT 1,31/07/2015,170.75,Telephones - General,Telecommunication Equipment Including Telephone Sa,GPC
Statement 18/07/2015 to 17/08/2015,C&YPS-Non Delegated,BT BILL PAYMENT 1,13/08/2015,69.89,Telephones - General,Telecommunication Equipment Including Telephone Sa,GPC
Statement 18/07/2015 to 17/08/2015,C&YPS-Non Delegated,BT BILL PAYMENT 2,20/07/2015,219.55,Telephones - General,Telecommunication Equipment Including Telephone Sa,GPC
Statement 18/07/2015 to 17/08/2015,C&YPS-Non Delegated,BT BILL PAYMENT 2,31/07/2015,49.89,Telephones - General,Telecommunication Equipment Including Telephone Sa,GPC
Statement 18/07/2015 to 17/08/2015,C&YPS-Non Delegated,BT PAY BY PHONE,14/08/2015,122.64,Telephones - General,Telecommunication Service Including Local and Long,GPC
Statement 18/07/2015 to 17/08/2015,C&YPS-Non Delegated,C P R WINDSCREENS,23/07/2015,525.00,General Equipment - General,Automotive Repair Shops (non-dealer),GPC
Statement 18/07/2015 to 17/08/2015,C&YPS-Non Delegated,CADBURY WORLD INTERNET,22/07/2015,87.63,Other Equipment & Materials - General,"Amusement Parks, Circuses, Carnivals, Fortune Tell",GPC
Statement 18/07/2015 to 17/08/2015,C&YPS-Non Delegated,CAMDEN FOOD COMPANY,23/07/2015,5.60,Subsistence - General,Fast-Food Restaurants (Quick Payment Service Pilot,GPC
Statement 18/07/2015 to 17/08/2015,C&YPS-Non Delegated,CAPITAL FM ARENA,30/07/2015,108.00,Other Equipment & Materials - General,"Theatrical Products (Except Motion Pictures), Tick",GPC
Statement 18/07/2015 to 17/08/2015,C&YPS-Non Delegated,CENTRAL ENG COOP,27/07/2015,65.00,Client/Volunteers - General,Department Stores,GPC
Statement 18/07/2015 to 17/08/2015,C&YPS-Non Delegated,CENTRAL ENG COOP,27/07/2015,65.00,Client/Volunteers - General,Department Stores,GPC
Statement 18/07/2015 to 17/08/2015,C&YPS-Non Delegated,CENTRAL ENG COOP,20/07/2015,15.74,Other Equipment & Materials - General,Department Stores,GPC
Statement 18/07/2015 to 17/08/2015,C&YPS-Non Delegated,CENTRAL ENG COOP,23/07/2015,13.03,Other Equipment & Materials - General,Department Stores,GPC
Statement 18/07/2015 to 17/08/2015,C&YPS-Non Delegated,CENTRAL ENG COOP,30/07/2015,4.28,Other Equipment & Materials - General,Department Stores,GPC
Statement 18/07/2015 to 17/08/2015,C&YPS-Non Delegated,CENTRAL ENG COOP,08/08/2015,21.08,Subsistence - General,Department Stores,GPC
Statement 18/07/2015 to 17/08/2015,C&YPS-Non Delegated,CENTRAL ENG COOP,11/08/2015,15.14,Subsistence - General,Department Stores,GPC
Statement 18/07/2015 to 17/08/2015,C&YPS-Non Delegated,CEX,14/08/2015,50.00,R & M of Buildings - General,Electrical Parts and Equipment,GPC
Statement 18/07/2015 to 17/08/2015,C&YPS-Non Delegated,CHARNWOOD BOROUGH COUNCI,27/07/2015,3.20,Casual/Essential - General,Automobile Parking Lots and Garages,GPC
Statement 18/07/2015 to 17/08/2015,C&YPS-Non Delegated,CHEAPOAIR.CO.UK 29622,12/08/2015,26.33,Casual/Essential - General,Travel Agencies,GPC
Statement 18/07/2015 to 17/08/2015,C&YPS-Non Delegated,CINEMA DE LUX UPT,06/08/2015,27.00,Personal Needs of Clients - Holidays & Outings,Motion Picture Theatres,GPC
Statement 18/07/2015 to 17/08/2015,C&YPS-Non Delegated,COSTA COFFEE,10/08/2015,21.35,Other Expenditure - General,"Miscellaneous Food Stores-Convenience Stores, Mark",GPC
Statement 18/07/2015 to 17/08/2015,C&YPS-Non Delegated,CURRYS T/SALES,05/08/2015,229.99,Materials - General,"RADIO, TELEVISION, AND STEREO STORES (ELECTRONIC STORES)",GPC
Statement 18/07/2015 to 17/08/2015,C&YPS-Non Delegated,DE MONTFORT EXPERTISE LTD,03/08/2015,500.00,Other Transfer Payments - Section 23 Grants,"Colleges, Universities, Professional Schools, and",GPC
Statement 18/07/2015 to 17/08/2015,C&YPS-Non Delegated,DE MONTFORT EXPERTISE LTD,03/08/2015,416.67,Other Transfer Payments - Sector 17- Other,"Colleges, Universities, Professional Schools, and",GPC
Statement 18/07/2015 to 17/08/2015,C&YPS-Non Delegated,DE MONTFORT EXPERTISE LTD,03/08/2015,367.91,Other Transfer Payments - Sector 17- Other,"Colleges, Universities, Professional Schools, and",GPC
Statement 18/07/2015 to 17/08/2015,C&YPS-Non Delegated,DERWENT HOUSING ASSN L,29/07/2015,164.12,Schools Agency staff - Teaching Staff,Professional Services-Not Elsewhere Classified,GPC
Statement 18/07/2015 to 17/08/2015,C&YPS-Non Delegated,DRAYTON MANOR PARK LIMITE,05/08/2015,41.50,Personal Needs of Clients - Holidays & Outings,"Amusement Parks, Circuses, Carnivals, Fortune Tell",GPC
Statement 18/07/2015 to 17/08/2015,C&YPS-Non Delegated,DYNAMITE GYM LTD,27/07/2015,75.00,Subscriptions - General,"Membership Clubs (Sports, Recreation, Athletic), C",GPC
Statement 18/07/2015 to 17/08/2015,C&YPS-Non Delegated,EAST MIDLANDS MARKET HAR,16/07/2015,10.50,Casual/Essential - General,Automobile Parking Lots and Garages,GPC
Statement 18/07/2015 to 17/08/2015,C&YPS-Non Delegated,EAST MIDLANDS MARKET HAR,28/07/2015,10.50,Casual/Essential - General,Automobile Parking Lots and Garages,GPC
Statement 18/07/2015 to 17/08/2015,C&YPS-Non Delegated,EAST MIDLANDS TRAI,28/07/2015,54.50,Casual/Essential - General,Passenger Railways,GPC
Statement 18/07/2015 to 17/08/2015,C&YPS-Non Delegated,EAST MIDLANDS TRAI,15/08/2015,17.20,Casual/Essential - General,Passenger Railways,GPC
Statement 18/07/2015 to 17/08/2015,C&YPS-Non Delegated,ENDERBY LEISURE CE,23/07/2015,175.00,Other Transfer Payments - Sector 17- Other,"Membership Clubs (Sports, Recreation, Athletic), C",GPC
Statement 18/07/2015 to 17/08/2015,C&YPS-Non Delegated,ESPO,03/08/2015,29.00,Stationery - General,Government Services-Not Elsewhere Classified,GPC
Statement 18/07/2015 to 17/08/2015,C&YPS-Non Delegated,ESPO,05/08/2015,293.00,Stationery - General,Government Services-Not Elsewhere Classified,GPC
Statement 18/07/2015 to 17/08/2015,C&YPS-Non Delegated,ESPO,06/08/2015,135.20,Stationery - General,Government Services-Not Elsewhere Classified,GPC
Statement 18/07/2015 to 17/08/2015,C&YPS-Non Delegated,ESPO,13/08/2015,86.82,Stationery - General,Government Services-Not Elsewhere Classified,GPC
Statement 18/07/2015 to 17/08/2015,C&YPS-Non Delegated,FOREIGN EXCHANGE FEE,14/08/2015,1.74,IT Equipment - Software,Misc-Unknown,GPC
Statement 18/07/2015 to 17/08/2015,C&YPS-Non Delegated,FOREIGN EXCHANGE FEE,30/07/2015,3.88,Stationery - General,Misc-Unknown,GPC
Statement 18/07/2015 to 17/08/2015,C&YPS-Non Delegated,GOOSEBERRY BUSH,28/07/2015,392.60,Other Transfer Payments - Section 23 Grants,Child Care Services,GPC
Statement 18/07/2015 to 17/08/2015,C&YPS-Non Delegated,GRIMSBY FISHERIES,17/07/2015,23.70,Provisions - General,"Eating Places, Restaurants",GPC
Statement 18/07/2015 to 17/08/2015,C&YPS-Non Delegated,GRO HM PASSPORT OFFICE,22/07/2015,18.50,Provisions - General,Government Services-Not Elsewhere Classified,GPC
Statement 18/07/2015 to 17/08/2015,C&YPS-Non Delegated,HMCOURTS-SERVICE.G,20/07/2015,15.00,Other Expenditure - General,Fines,GPC
Statement 18/07/2015 to 17/08/2015,C&YPS-Non Delegated,HOME BARGAINS,27/07/2015,20.51,Other Expenditure - General,Hardware Stores,GPC
Statement 18/07/2015 to 17/08/2015,C&YPS-Non Delegated,HOME BARGAINS,30/07/2015,22.84,Other Expenditure - General,Hardware Stores,GPC
Statement 18/07/2015 to 17/08/2015,C&YPS-Non Delegated,J W PEPPER AND SON INC,28/07/2015,141.13,Stationery - General,"Music Stores-Musical Instruments, Pianos, Sheet Mu",GPC
Statement 18/07/2015 to 17/08/2015,C&YPS-Non Delegated,LE PAIN QUOTIDIEN,28/07/2015,2.00,Subsistence - General,"Eating Places, Restaurants",GPC
Statement 18/07/2015 to 17/08/2015,C&YPS-Non Delegated,LE PAIN QUOTIDIEN,28/07/2015,1.90,Subsistence - General,"Eating Places, Restaurants",GPC
Statement 18/07/2015 to 17/08/2015,C&YPS-Non Delegated,LE PAIN QUOTIDIEN,28/07/2015,6.30,Subsistence - General,"Eating Places, Restaurants",GPC
Statement 18/07/2015 to 17/08/2015,C&YPS-Non Delegated,LEIC CITY COUNCIL,12/08/2015,13.00,Materials - General,Government Services-Not Elsewhere Classified,GPC
Statement 18/07/2015 to 17/08/2015,C&YPS-Non Delegated,LEIC CITY COUNCIL,31/07/2015,23.00,Other Expenditure - General,Government Services-Not Elsewhere Classified,GPC
Statement 18/07/2015 to 17/08/2015,C&YPS-Non Delegated,LEIC CITY COUNCIL,31/07/2015,23.00,Other Expenditure - General,Government Services-Not Elsewhere Classified,GPC
Statement 18/07/2015 to 17/08/2015,C&YPS-Non Delegated,LEIC CITY COUNCIL,31/07/2015,23.00,Other Expenditure - General,Government Services-Not Elsewhere Classified,GPC
Statement 18/07/2015 to 17/08/2015,C&YPS-Non Delegated,LEIC CITY COUNCIL,31/07/2015,13.00,Other Expenditure - General,Government Services-Not Elsewhere Classified,GPC
Statement 18/07/2015 to 17/08/2015,C&YPS-Non Delegated,LEIC CITY COUNCIL,31/07/2015,23.00,Other Expenditure - General,Government Services-Not Elsewhere Classified,GPC
Statement 18/07/2015 to 17/08/2015,C&YPS-Non Delegated,LEIC CITY COUNCIL,31/07/2015,23.00,Other Expenditure - General,Government Services-Not Elsewhere Classified,GPC
Statement 18/07/2015 to 17/08/2015,C&YPS-Non Delegated,LEIC CITY COUNCIL,31/07/2015,23.00,Other Expenditure - General,Government Services-Not Elsewhere Classified,GPC
Statement 18/07/2015 to 17/08/2015,C&YPS-Non Delegated,LEIC CITY COUNCIL,31/07/2015,23.00,Other Expenditure - General,Government Services-Not Elsewhere Classified,GPC
Statement 18/07/2015 to 17/08/2015,C&YPS-Non Delegated,LEIC CITY COUNCIL,06/08/2015,140.00,Other Expenditure - General,Government Services-Not Elsewhere Classified,GPC
Statement 18/07/2015 to 17/08/2015,C&YPS-Non Delegated,LEIC CITY COUNCIL,07/08/2015,13.00,Other Expenditure - General,Government Services-Not Elsewhere Classified,GPC
Statement 18/07/2015 to 17/08/2015,C&YPS-Non Delegated,LEIC CITY COUNCIL,11/08/2015,-10.00,Other Expenditure - General,Government Services-Not Elsewhere Classified,GPC
Statement 18/07/2015 to 17/08/2015,C&YPS-Non Delegated,LEIC CITY COUNCIL,12/08/2015,-10.00,Other Expenditure - General,Government Services-Not Elsewhere Classified,GPC
Statement 18/07/2015 to 17/08/2015,C&YPS-Non Delegated,LEIC CITY COUNCIL,20/07/2015,13.00,Other Transfer Payments - Section 23 Grants,Government Services-Not Elsewhere Classified,GPC
Statement 18/07/2015 to 17/08/2015,C&YPS-Non Delegated,LEIC CITY COUNCIL,22/07/2015,23.00,Other Transfer Payments - Section 23 Grants,Government Services-Not Elsewhere Classified,GPC
Statement 18/07/2015 to 17/08/2015,C&YPS-Non Delegated,LEIC CITY COUNCIL,22/07/2015,13.00,Other Transfer Payments - Section 23 Grants,Government Services-Not Elsewhere Classified,GPC
Statement 18/07/2015 to 17/08/2015,C&YPS-Non Delegated,LEIC CITY COUNCIL,04/08/2015,13.00,Other Transfer Payments - Section 23 Grants,Government Services-Not Elsewhere Classified,GPC
Statement 18/07/2015 to 17/08/2015,C&YPS-Non Delegated,LEIC CITY COUNCIL,04/08/2015,13.00,Other Transfer Payments - Section 23 Grants,Government Services-Not Elsewhere Classified,GPC
Statement 18/07/2015 to 17/08/2015,C&YPS-Non Delegated,LEIC CITY COUNCIL,04/08/2015,13.00,Other Transfer Payments - Section 23 Grants,Government Services-Not Elsewhere Classified,GPC
Statement 18/07/2015 to 17/08/2015,C&YPS-Non Delegated,LEIC CITY COUNCIL,06/08/2015,-10.00,Other Transfer Payments - Section 23 Grants,Government Services-Not Elsewhere Classified,GPC
Statement 18/07/2015 to 17/08/2015,C&YPS-Non Delegated,LEIC CITY COUNCIL,11/08/2015,23.00,Other Transfer Payments - Section 23 Grants,Government Services-Not Elsewhere Classified,GPC
Statement 18/07/2015 to 17/08/2015,C&YPS-Non Delegated,LEIC CITY COUNCIL,11/08/2015,23.00,Other Transfer Payments - Section 23 Grants,Government Services-Not Elsewhere Classified,GPC
Statement 18/07/2015 to 17/08/2015,C&YPS-Non Delegated,LEIC CITY COUNCIL,12/08/2015,-6.00,Other Transfer Payments - Section 23 Grants,Government Services-Not Elsewhere Classified,GPC
Statement 18/07/2015 to 17/08/2015,C&YPS-Non Delegated,LEIC CITY COUNCIL,12/08/2015,13.00,Other Transfer Payments - Section 23 Grants,Government Services-Not Elsewhere Classified,GPC
Statement 18/07/2015 to 17/08/2015,C&YPS-Non Delegated,LEICESTER OUTDOOR PURS,07/08/2015,282.50,Other Expenditure - General,"Membership Clubs (Sports, Recreation, Athletic), C",GPC
Statement 18/07/2015 to 17/08/2015,C&YPS-Non Delegated,LEICESTERSHIRE C COUNC,31/07/2015,21.00,Other Expenditure - General,Government Services-Not Elsewhere Classified,GPC
Statement 18/07/2015 to 17/08/2015,C&YPS-Non Delegated,LEICESTERSHIRE C COUNC,11/08/2015,11.00,Other Expenditure - General,Government Services-Not Elsewhere Classified,GPC
Statement 18/07/2015 to 17/08/2015,C&YPS-Non Delegated,LEICESTERSHIRE C COUNC,12/08/2015,11.00,Other Expenditure - General,Government Services-Not Elsewhere Classified,GPC
Statement 18/07/2015 to 17/08/2015,C&YPS-Non Delegated,LEICESTERSHIRE C COUNC,12/08/2015,11.00,Other Expenditure - General,Government Services-Not Elsewhere Classified,GPC
Statement 18/07/2015 to 17/08/2015,C&YPS-Non Delegated,LEICESTERSHIRE C COUNC,14/08/2015,11.00,Other Expenditure - General,Government Services-Not Elsewhere Classified,GPC
Statement 18/07/2015 to 17/08/2015,C&YPS-Non Delegated,LEICESTERSHIRE C COUNC,07/08/2015,11.00,Other Transfer Payments - Section 23 Grants,Government Services-Not Elsewhere Classified,GPC
Statement 18/07/2015 to 17/08/2015,C&YPS-Non Delegated,LEISURE HIRE,28/07/2015,6.30,Subsistence - General,Boat Rentals and Leasing,GPC
Statement 18/07/2015 to 17/08/2015,C&YPS-Non Delegated,LIDL UK,17/07/2015,64.60,Provisions - General,"Grocery Stores, Supermarkets",GPC
Statement 18/07/2015 to 17/08/2015,C&YPS-Non Delegated,LIDL UK,27/07/2015,113.95,Provisions - General,"Grocery Stores, Supermarkets",GPC
Statement 18/07/2015 to 17/08/2015,C&YPS-Non Delegated,LIDL UK,10/08/2015,1.29,Provisions - General,"Grocery Stores, Supermarkets",GPC
Statement 18/07/2015 to 17/08/2015,C&YPS-Non Delegated,LIDL UK,10/08/2015,6.89,Provisions - General,"Grocery Stores, Supermarkets",GPC
Statement 18/07/2015 to 17/08/2015,C&YPS-Non Delegated,LIDL UK,06/08/2015,15.02,Subsistence - General,"Grocery Stores, Supermarkets",GPC
Statement 18/07/2015 to 17/08/2015,C&YPS-Non Delegated,LIDL UK,15/08/2015,19.47,Subsistence - General,"Grocery Stores, Supermarkets",GPC
Statement 18/07/2015 to 17/08/2015,C&YPS-Non Delegated,LOUGHBOROUGH SST,23/07/2015,28.40,Casual/Essential - General,Passenger Railways,GPC
Statement 18/07/2015 to 17/08/2015,C&YPS-Non Delegated,LP4,22/07/2015,6.50,Subsistence - General,Fast-Food Restaurants (Quick Payment Service Pilot,GPC
Statement 18/07/2015 to 17/08/2015,C&YPS-Non Delegated,MARKS & SPENCER,05/08/2015,17.50,Other Expenditure - General,"Grocery Stores, Supermarkets",GPC
Statement 18/07/2015 to 17/08/2015,C&YPS-Non Delegated,MAX SPIELMANN LTD,06/08/2015,6.99,Materials - General,Photographic Studios,GPC
Statement 18/07/2015 to 17/08/2015,C&YPS-Non Delegated,MCDONALDS,18/07/2015,46.20,Other Expenditure - General,Fast-Food Restaurants (Quick Payment Service Pilot,GPC
Statement 18/07/2015 to 17/08/2015,C&YPS-Non Delegated,MCDONALDS,07/08/2015,6.67,Subsistence - General,"Eating Places, Restaurants",GPC
Statement 18/07/2015 to 17/08/2015,C&YPS-Non Delegated,MELTON & DISTRICT,07/08/2015,27.50,Other Services - General,Charitable and Social Service Organizations,GPC
Statement 18/07/2015 to 17/08/2015,C&YPS-Non Delegated,NATIONAL RAILCARD,03/08/2015,30.00,Other Expenditure - General,Passenger Railways,GPC
Statement 18/07/2015 to 17/08/2015,C&YPS-Non Delegated,NORTHWOOD,14/08/2015,358.75,Other Transfer Payments - Section 23 Grants,Professional Services-Not Elsewhere Classified,GPC
Statement 18/07/2015 to 17/08/2015,C&YPS-Non Delegated,PARKING LEIC CC,05/08/2015,3.00,Other Expenditure - General,Government Services-Not Elsewhere Classified,GPC
Statement 18/07/2015 to 17/08/2015,C&YPS-Non Delegated,PARTRIDGE & PRINT,13/08/2015,281.50,Books - General,Schools and Educational Services-Not Elsewhere Cla,GPC
Statement 18/07/2015 to 17/08/2015,C&YPS-Non Delegated,PAYPAL  BAKERROSSLI,03/08/2015,91.85,Other Equipment & Materials - General,"Hobby, Toy, and Game Shops",GPC
Statement 18/07/2015 to 17/08/2015,C&YPS-Non Delegated,PAYPAL  BUYFORLESS,04/08/2015,4.97,Other Equipment & Materials - General,"Hobby, Toy, and Game Shops",GPC
Statement 18/07/2015 to 17/08/2015,C&YPS-Non Delegated,PAYPAL  FANCY DRESS,21/07/2015,7.95,Other Expenditure - General,Miscellaneous Apparel and Accessory Stores,GPC
Statement 18/07/2015 to 17/08/2015,C&YPS-Non Delegated,PAYPAL  HIGHRIDGEPR,21/07/2015,3.87,Other Expenditure - General,Miscellaneous House Furnishing Specialty Shops,GPC
Statement 18/07/2015 to 17/08/2015,C&YPS-Non Delegated,PAYPAL  LICANORILTD,29/07/2015,22.98,Other Equipment & Materials - General,Chemicals and Allied Products Not Elsewhere Classi,GPC
Statement 18/07/2015 to 17/08/2015,C&YPS-Non Delegated,PAYPAL  MFABOWLLIMI,14/08/2015,20.00,Materials - General,Sporting Goods Stores,GPC
Statement 18/07/2015 to 17/08/2015,C&YPS-Non Delegated,PAYPAL  SWEETFACTOR,21/07/2015,24.71,Other Expenditure - General,"Package Stores, Beer, Wine, Liquor",GPC
Statement 18/07/2015 to 17/08/2015,C&YPS-Non Delegated,PAYPAL  WESTOCKALLS,21/07/2015,7.89,Other Expenditure - General,Variety Stores,GPC
Statement 18/07/2015 to 17/08/2015,C&YPS-Non Delegated,POUNDSTRETCHER 175,30/07/2015,13.98,General Equipment - General,"Drapery, Window Coverings, and Upholstery Stores",GPC
Statement 18/07/2015 to 17/08/2015,C&YPS-Non Delegated,PREMIER INN 44533710,23/07/2015,49.79,Training Expenses - General,PREMIER TRAVEL,GPC
Statement 18/07/2015 to 17/08/2015,C&YPS-Non Delegated,PRESTO RETAIL LTD,17/07/2015,31.50,Other Equipment & Materials - General,"Grocery Stores, Supermarkets",GPC
Statement 18/07/2015 to 17/08/2015,C&YPS-Non Delegated,PRIMARK 648,15/08/2015,13.00,Materials - General,Family Clothing Stores,GPC
Statement 18/07/2015 to 17/08/2015,C&YPS-Non Delegated,RUTLAND WATER CYCLING,04/08/2015,129.05,Other Equipment & Materials - General,Bicycle Shops-Sales and Service,GPC
Statement 18/07/2015 to 17/08/2015,C&YPS-Non Delegated,RYANAIR     HNLC2Q0,12/08/2015,63.28,Casual/Essential - General,RYANAIR,GPC
Statement 18/07/2015 to 17/08/2015,C&YPS-Non Delegated,RYMAN,19/07/2015,6.87,Stationery - General,"Stationery, Office, and School Supply Stores",GPC
Statement 18/07/2015 to 17/08/2015,C&YPS-Non Delegated,RYMAN,30/07/2015,11.49,Stationery - General,"Stationery, Office, and School Supply Stores",GPC
Statement 18/07/2015 to 17/08/2015,C&YPS-Non Delegated,SAAB PROFESSIONAL LTD,06/08/2015,18.50,Personal Needs of Clients - Drugs & Medical Requisitions,"Dentists, Orthodontists",GPC
Statement 18/07/2015 to 17/08/2015,C&YPS-Non Delegated,SAINSBURY'S S/MKT,11/08/2015,23.98,Materials - General,"Grocery Stores, Supermarkets",GPC
Statement 18/07/2015 to 17/08/2015,C&YPS-Non Delegated,SAINSBURY'S S/MKT,14/08/2015,4.50,Other Equipment & Materials - General,"Grocery Stores, Supermarkets",GPC
Statement 18/07/2015 to 17/08/2015,C&YPS-Non Delegated,SAINSBURY'S S/MKT,29/07/2015,71.75,Other Expenditure - General,"Grocery Stores, Supermarkets",GPC
Statement 18/07/2015 to 17/08/2015,C&YPS-Non Delegated,SAINSBURY'S S/MKT,10/08/2015,22.20,Provisions - General,"Grocery Stores, Supermarkets",GPC
Statement 18/07/2015 to 17/08/2015,C&YPS-Non Delegated,SPORTSDIRECT 125,04/08/2015,86.46,Personal Needs of Clients - Clothing,Sporting Goods Stores,GPC
Statement 18/07/2015 to 17/08/2015,C&YPS-Non Delegated,SPORTSDIRECT 125,07/08/2015,42.00,Personal Needs of Clients - Clothing,Sporting Goods Stores,GPC
Statement 18/07/2015 to 17/08/2015,C&YPS-Non Delegated,STAFFORDSHIRE COUNTY C,06/08/2015,10.00,Other Expenditure - General,Government Services-Not Elsewhere Classified,GPC
Statement 18/07/2015 to 17/08/2015,C&YPS-Non Delegated,STONEHURST FARM,13/08/2015,16.65,Provisions - General,"Miscellaneous Food Stores-Convenience Stores, Mark",GPC
Statement 18/07/2015 to 17/08/2015,C&YPS-Non Delegated,STONEHURST FARM,13/08/2015,17.85,Provisions - General,"Miscellaneous Food Stores-Convenience Stores, Mark",GPC
Statement 18/07/2015 to 17/08/2015,C&YPS-Non Delegated,TESCO PFS 3799,04/08/2015,51.50,Other Transport Costs - General,Service Stations (with or without Ancillary Servic,GPC
Statement 18/07/2015 to 17/08/2015,C&YPS-Non Delegated,TESCO STORE 2846,03/08/2015,35.68,Materials - General,"Grocery Stores, Supermarkets",GPC
Statement 18/07/2015 to 17/08/2015,C&YPS-Non Delegated,TESCO STORE 2846,11/08/2015,58.14,Other Equipment & Materials - General,"Grocery Stores, Supermarkets",GPC
Statement 18/07/2015 to 17/08/2015,C&YPS-Non Delegated,TESCO STORE 2849,17/07/2015,12.99,Materials - General,"Grocery Stores, Supermarkets",GPC
Statement 18/07/2015 to 17/08/2015,C&YPS-Non Delegated,TESCO STORE 2849,17/07/2015,86.50,Materials - General,"Grocery Stores, Supermarkets",GPC
Statement 18/07/2015 to 17/08/2015,C&YPS-Non Delegated,TESCO STORE 2849,21/07/2015,33.06,Other Equipment & Materials - General,"Grocery Stores, Supermarkets",GPC
Statement 18/07/2015 to 17/08/2015,C&YPS-Non Delegated,TESCO STORE 2849,28/07/2015,18.81,Other Equipment & Materials - General,"Grocery Stores, Supermarkets",GPC
Statement 18/07/2015 to 17/08/2015,C&YPS-Non Delegated,TESCO STORE 2849,28/07/2015,26.15,Other Equipment & Materials - General,"Grocery Stores, Supermarkets",GPC
Statement 18/07/2015 to 17/08/2015,C&YPS-Non Delegated,TESCO STORE 2849,28/07/2015,20.00,Other Equipment & Materials - General,"Grocery Stores, Supermarkets",GPC
Statement 18/07/2015 to 17/08/2015,C&YPS-Non Delegated,TESCO STORE 2849,28/07/2015,39.52,Other Equipment & Materials - General,"Grocery Stores, Supermarkets",GPC
Statement 18/07/2015 to 17/08/2015,C&YPS-Non Delegated,TESCO STORE 2849,27/07/2015,27.20,Other Expenditure - General,"Grocery Stores, Supermarkets",GPC
Statement 18/07/2015 to 17/08/2015,C&YPS-Non Delegated,TESCO STORE 2878,03/08/2015,4.45,Subsistence - General,"Grocery Stores, Supermarkets",GPC
Statement 18/07/2015 to 17/08/2015,C&YPS-Non Delegated,TESCO STORES 2044,29/07/2015,111.50,Provisions - General,"Grocery Stores, Supermarkets",GPC
Statement 18/07/2015 to 17/08/2015,C&YPS-Non Delegated,TESCO STORES 2044,05/08/2015,4.00,Provisions - General,"Grocery Stores, Supermarkets",GPC
Statement 18/07/2015 to 17/08/2015,C&YPS-Non Delegated,TESCO STORES 2849,27/07/2015,16.74,Other Expenditure - General,"Grocery Stores, Supermarkets",GPC
Statement 18/07/2015 to 17/08/2015,C&YPS-Non Delegated,TESCO STORES 2849,04/08/2015,17.89,Subsistence - General,"Grocery Stores, Supermarkets",GPC
Statement 18/07/2015 to 17/08/2015,C&YPS-Non Delegated,TESCO STORES 5902,07/08/2015,61.44,Subsistence - General,"Grocery Stores, Supermarkets",GPC
Statement 18/07/2015 to 17/08/2015,C&YPS-Non Delegated,THE MAKATON CHARIT,20/07/2015,340.60,Training Expenses - General,Schools and Educational Services-Not Elsewhere Cla,GPC
Statement 18/07/2015 to 17/08/2015,C&YPS-Non Delegated,THE NURTURE GROUP NETW,24/07/2015,202.46,Materials - General,Charitable and Social Service Organizations,GPC
Statement 18/07/2015 to 17/08/2015,C&YPS-Non Delegated,THE R U COMPANY,03/08/2015,24.16,Other Equipment & Materials - General,"Furniture, Home Furnishings and Equipment Stores,",GPC
Statement 18/07/2015 to 17/08/2015,C&YPS-Non Delegated,THE RANGE,04/08/2015,29.97,General Equipment - General,Department Stores,GPC
Statement 18/07/2015 to 17/08/2015,C&YPS-Non Delegated,THE RANGE,21/07/2015,7.98,Other Equipment & Materials - General,Department Stores,GPC
Statement 18/07/2015 to 17/08/2015,C&YPS-Non Delegated,THE RANGE,28/07/2015,37.30,Other Equipment & Materials - General,Department Stores,GPC
Statement 18/07/2015 to 17/08/2015,C&YPS-Non Delegated,THE RANGE,06/08/2015,58.74,Other Equipment & Materials - General,Department Stores,GPC
Statement 18/07/2015 to 17/08/2015,C&YPS-Non Delegated,THE RANGE,13/08/2015,61.93,Other Transfer Payments - Sector 17- Other,Department Stores,GPC
Statement 18/07/2015 to 17/08/2015,C&YPS-Non Delegated,THE WORKS,30/07/2015,10.95,Other Expenditure - General,Book Stores,GPC
Statement 18/07/2015 to 17/08/2015,C&YPS-Non Delegated,UPT-EAST MIDLANDS TRN-LB,23/07/2015,11.00,Schools Agency staff - Teaching Staff,Professional Services-Not Elsewhere Classified,GPC
Statement 18/07/2015 to 17/08/2015,C&YPS-Non Delegated,W M MORRISON,20/07/2015,27.44,Other Expenditure - General,"Grocery Stores, Supermarkets",GPC
Statement 18/07/2015 to 17/08/2015,C&YPS-Non Delegated,W M MORRISON,03/08/2015,28.19,Other Expenditure - General,"Grocery Stores, Supermarkets",GPC
Statement 18/07/2015 to 17/08/2015,C&YPS-Non Delegated,W M MORRISON,20/07/2015,81.61,Provisions - General,"Grocery Stores, Supermarkets",GPC
Statement 18/07/2015 to 17/08/2015,C&YPS-Non Delegated,W M MORRISONS,22/07/2015,26.10,Other Equipment & Materials - General,"Grocery Stores, Supermarkets",GPC
Statement 18/07/2015 to 17/08/2015,C&YPS-Non Delegated,W M MORRISONS,30/07/2015,4.25,Other Equipment & Materials - General,"Grocery Stores, Supermarkets",GPC
Statement 18/07/2015 to 17/08/2015,C&YPS-Non Delegated,W M MORRISONS,04/08/2015,12.70,Other Equipment & Materials - General,"Grocery Stores, Supermarkets",GPC
Statement 18/07/2015 to 17/08/2015,C&YPS-Non Delegated,W M MORRISONS CAFE,24/07/2015,3.80,Subsistence - General,"Eating Places, Restaurants",GPC
Statement 18/07/2015 to 17/08/2015,C&YPS-Non Delegated,W M MORRISONS CAFE,13/08/2015,7.59,Subsistence - General,"Eating Places, Restaurants",GPC
Statement 18/07/2015 to 17/08/2015,C&YPS-Non Delegated,WILKO RETAIL LIMIT,11/08/2015,32.00,General Equipment - General,Household Appliance Stores,GPC
Statement 18/07/2015 to 17/08/2015,C&YPS-Non Delegated,WILKO RETAIL LIMIT,03/08/2015,25.00,Materials - General,Household Appliance Stores,GPC
Statement 18/07/2015 to 17/08/2015,C&YPS-Non Delegated,WILKO RETAIL LIMIT,17/07/2015,27.61,Other Equipment & Materials - General,Household Appliance Stores,GPC
Statement 18/07/2015 to 17/08/2015,C&YPS-Non Delegated,WILKO RETAIL LIMIT,20/07/2015,17.80,Other Transfer Payments - Section 23 Grants,Household Appliance Stores,GPC
Statement 18/07/2015 to 17/08/2015,C&YPS-Non Delegated,WILKO RETAIL LIMIT,08/08/2015,3.75,Subsistence - General,Household Appliance Stores,GPC
Statement 18/07/2015 to 17/08/2015,C&YPS-Non Delegated,WM MORRISON 054,22/07/2015,7.03,Other Equipment & Materials - General,"Grocery Stores, Supermarkets",GPC
Statement 18/07/2015 to 17/08/2015,C&YPS-Non Delegated,WM MORRISON 054,20/07/2015,76.00,Other Transfer Payments - Section 23 Grants,"Grocery Stores, Supermarkets",GPC
Statement 18/07/2015 to 17/08/2015,C&YPS-Non Delegated,WM MORRISON 054,28/07/2015,17.38,Subsistence - General,"Grocery Stores, Supermarkets",GPC
Statement 18/07/2015 to 17/08/2015,C&YPS-Non Delegated,WM MORRISON 054,28/07/2015,30.88,Subsistence - General,"Grocery Stores, Supermarkets",GPC
Statement 18/07/2015 to 17/08/2015,C&YPS-Non Delegated,WWW.AALS.ORG.UK,03/08/2015,724.00,Subscriptions - General,RECREATION SERVICES--NOT ELSEWHERE CLASSIFIED,GPC
Statement 18/07/2015 to 17/08/2015,C&YPS-Non Delegated,WWW.C2UOFFICE.CO.U,04/08/2015,344.50,Stationery - General,"Stationery, Office, and School Supply Stores",GPC
Statement 18/07/2015 to 17/08/2015,C&YPS-Non Delegated,WWW.CITIZENCARD.COM,17/07/2015,15.00,Other Expenditure - General,Government Services-Not Elsewhere Classified,GPC
Statement 18/07/2015 to 17/08/2015,C&YPS-Non Delegated,WWW.DHL INTERNATIONAL,04/08/2015,18.97,Postal Services - General,"Courier Services-Air and Ground, and Freight Forw",GPC
Statement 18/07/2015 to 17/08/2015,C&YPS-Non Delegated,WWW.DHL INTERNATIONAL,04/08/2015,21.08,Postal Services - General,"Courier Services-Air and Ground, and Freight Forw",GPC
Statement 18/07/2015 to 17/08/2015,C&YPS-Non Delegated,WWW.MAGIBOARDS.COM,05/08/2015,189.50,General Equipment - General,"Stationery, Office, and School Supply Stores",GPC
Statement 18/07/2015 to 17/08/2015,C&YPS-Non Delegated,WWW.MAGIBOARDS.COM,05/08/2015,191.50,General Equipment - General,"Stationery, Office, and School Supply Stores",GPC
Statement 18/07/2015 to 17/08/2015,C&YPS-Non Delegated,WWW.MILKANDMORE.CO.UK,22/07/2015,10.15,Provisions - General,Continuity/Subscription Merchants,GPC
Statement 18/07/2015 to 17/08/2015,C&YPS-Non Delegated,WWW.MILKANDMORE.CO.UK,03/08/2015,9.40,Provisions - General,Continuity/Subscription Merchants,GPC
Statement 18/07/2015 to 17/08/2015,C&YPS-Non Delegated,WWW.MILKANDMORE.CO.UK,03/08/2015,14.04,Provisions - General,Continuity/Subscription Merchants,GPC
Statement 18/07/2015 to 17/08/2015,C&YPS-Non Delegated,WWW.MILKANDMORE.CO.UK,03/08/2015,3.12,Provisions - General,Continuity/Subscription Merchants,GPC
Statement 18/07/2015 to 17/08/2015,C&YPS-Non Delegated,WWW.OSBORNEBOOKS.CO.UK,22/07/2015,43.70,Other Transfer Payments - Education Costs,Catalog Merchants,GPC
Statement 18/07/2015 to 17/08/2015,C&YPS-Non Delegated,WWW.PERFECTGIFTSONLINE,31/07/2015,73.83,Materials - General,Miscellaneous and Specialty Retail Stores,GPC
Statement 18/07/2015 to 17/08/2015,C&YPS-Non Delegated,WWW.ROYALMAIL.COM,23/07/2015,221.00,Postal Services - General,Postage Stamps,GPC
Statement 18/07/2015 to 17/08/2015,C&YPS-Non Delegated,WWW.STAPLES.CO.UK,23/07/2015,45.32,Other Equipment & Materials - General,"Stationery, Office, and School Supply Stores",GPC
Statement 18/07/2015 to 17/08/2015,C&YPS-Non Delegated,WWW.TOMMYS.ORG,29/07/2015,29.00,Other Equipment & Materials - General,Charitable and Social Service Organizations,GPC
Statement 18/07/2015 to 17/08/2015,C&YPS-Non Delegated,WWW.VIKING-DIRECT.CO.U,30/07/2015,330.00,Stationery - General,"Stationary, Office Supplies, Printing and Writing",GPC
Statement 18/07/2015 to 17/08/2015,C&YPS-Non Delegated,WWW.VIKING-DIRECT.CO.U,30/07/2015,385.00,Stationery - General,"Stationary, Office Supplies, Printing and Writing",GPC
Statement 18/07/2015 to 17/08/2015,C&YPS-Non Delegated,WWW.VIKING-DIRECT.CO.U,30/07/2015,385.00,Stationery - General,"Stationary, Office Supplies, Printing and Writing",GPC
Statement 18/07/2015 to 17/08/2015,C&YPS-Non Delegated,YOURS SUPERMARKET,29/07/2015,38.98,Catering Equipment - General,Dairy Products Stores,GPC
Statement 18/07/2015 to 17/08/2015,Capital,BLABY DISTRICT COUNCIL,11/08/2015,204.04,Buildings - Operational - Expenditure,Government Services-Not Elsewhere Classified,GPC
Statement 18/07/2015 to 17/08/2015,Capital,BLABY DISTRICT COUNCIL,11/08/2015,476.13,Buildings - Operational - Expenditure,Government Services-Not Elsewhere Classified,GPC
Statement 18/07/2015 to 17/08/2015,Capital,BT REPAYMENT WORKS,27/07/2015,200.00,Infrastructure - Main Contract,Telecommunication Service Including Local and Long,GPC
Statement 18/07/2015 to 17/08/2015,Capital,BT REPAYMENT WORKS,05/08/2015,-200.00,Infrastructure - Main Contract,Telecommunication Service Including Local and Long,GPC
Statement 18/07/2015 to 17/08/2015,Capital,IKEA ONLINE,05/08/2015,349.17,Buildings - Operational - Expenditure,Miscellaneous House Furnishing Specialty Shops,GPC
Statement 18/07/2015 to 17/08/2015,Capital,IKEA ONLINE,05/08/2015,337.50,Buildings - Operational - Expenditure,Miscellaneous House Furnishing Specialty Shops,GPC
Statement 18/07/2015 to 17/08/2015,Capital,IKEA ONLINE,05/08/2015,412.50,Buildings - Operational - Expenditure,Miscellaneous House Furnishing Specialty Shops,GPC
Statement 18/07/2015 to 17/08/2015,Chief Executive,Amazon Svcs Europe SAR,14/08/2015,5.00,Books - General,Book Stores,GPC
Statement 18/07/2015 to 17/08/2015,Chief Executive,Amazon Svcs Europe SAR,28/07/2015,52.03,IT Equipment - Maintenance,Book Stores,GPC
Statement 18/07/2015 to 17/08/2015,Chief Executive,Amazon Svcs Europe SAR,07/08/2015,35.81,Other Expenditure - General,Book Stores,GPC
Statement 18/07/2015 to 17/08/2015,Chief Executive,Amazon UK Marketplace,30/07/2015,90.00,Materials - General,Miscellaneous and Specialty Retail Stores,GPC
Statement 18/07/2015 to 17/08/2015,Chief Executive,Amazon UK Marketplace,12/08/2015,2.04,Materials - General,Miscellaneous and Specialty Retail Stores,GPC
Statement 18/07/2015 to 17/08/2015,Chief Executive,Amazon UK Marketplace,12/08/2015,17.52,Materials - General,Miscellaneous and Specialty Retail Stores,GPC
Statement 18/07/2015 to 17/08/2015,Chief Executive,Amazon UK Marketplace,13/08/2015,7.98,Materials - General,Miscellaneous and Specialty Retail Stores,GPC
Statement 18/07/2015 to 17/08/2015,Chief Executive,Amazon UK Marketplace,13/08/2015,2.86,Materials - General,Miscellaneous and Specialty Retail Stores,GPC
Statement 18/07/2015 to 17/08/2015,Chief Executive,Amazon UK Marketplace,06/08/2015,40.80,Other Expenditure - General,Book Stores,GPC
Statement 18/07/2015 to 17/08/2015,Chief Executive,Amazon UK Marketplace,30/07/2015,12.00,Stationery - General,Book Stores,GPC
Statement 18/07/2015 to 17/08/2015,Chief Executive,Amazon UK Marketplace,06/08/2015,16.44,Stationery - General,Miscellaneous and Specialty Retail Stores,GPC
Statement 18/07/2015 to 17/08/2015,Chief Executive,Amazon UK Marketplace,07/08/2015,19.84,Stationery - General,Miscellaneous and Specialty Retail Stores,GPC
Statement 18/07/2015 to 17/08/2015,Chief Executive,Amazon UK Marketplace,07/08/2015,111.06,Stationery - General,Miscellaneous and Specialty Retail Stores,GPC
Statement 18/07/2015 to 17/08/2015,Chief Executive,Amazon UK Retail,28/07/2015,11.28,IT Equipment - Maintenance,Direct Marketers - Other,GPC
Statement 18/07/2015 to 17/08/2015,Chief Executive,Amazon UK Retail,30/07/2015,7.28,Other Expenditure - General,Direct Marketers - Other,GPC
Statement 18/07/2015 to 17/08/2015,Chief Executive,Amazon UK Retail,01/08/2015,101.92,Other Expenditure - General,Direct Marketers - Other,GPC
Statement 18/07/2015 to 17/08/2015,Chief Executive,Amazon UK Retail,29/07/2015,10.65,Stationery - General,Direct Marketers - Other,GPC
Statement 18/07/2015 to 17/08/2015,Chief Executive,ASCERTIVA GROUP LT,28/07/2015,85.00,Conference - General,Book Stores,GPC
Statement 18/07/2015 to 17/08/2015,Chief Executive,AUSTIN REED LTD,13/08/2015,226.95,Protective Clothing & Uniforms - General,Family Clothing Stores,GPC
Statement 18/07/2015 to 17/08/2015,Chief Executive,CARTRIDGESAVE.CO.UK,23/07/2015,175.38,Stationery - General,"Stationery, Office, and School Supply Stores",GPC
Statement 18/07/2015 to 17/08/2015,Chief Executive,CHARNWOOD BOROUGH COUNCI,13/08/2015,2.20,Casual/Essential - General,Automobile Parking Lots and Garages,GPC
Statement 18/07/2015 to 17/08/2015,Chief Executive,HSE BOOKS (INTERNET),30/07/2015,63.00,Other Expenditure - General,Government Services-Not Elsewhere Classified,GPC
Statement 18/07/2015 to 17/08/2015,Chief Executive,LCC COUNTY HALL REGIST,23/07/2015,-11.00,Other Expenditure - General,Government Services-Not Elsewhere Classified,GPC
Statement 18/07/2015 to 17/08/2015,Chief Executive,LEICESTERSHIRE C COUNC,23/07/2015,11.00,Other Expenditure - General,Government Services-Not Elsewhere Classified,GPC
Statement 18/07/2015 to 17/08/2015,Chief Executive,LINKEDIN-299 5726683,07/08/2015,227.94,Recruitment Advertising - General,Continuity/Subscription Merchants,GPC
Statement 18/07/2015 to 17/08/2015,Chief Executive,MAN.AIRPORT REVENUE OF,07/08/2015,124.80,Other Expenditure - General,"Airports, Airport Terminals, Flying Fields",GPC
Statement 18/07/2015 to 17/08/2015,Chief Executive,NCP LIMITED,03/08/2015,3.50,Casual/Essential - General,Automobile Parking Lots and Garages,GPC
Statement 18/07/2015 to 17/08/2015,Chief Executive,POLIMIL LEICESTER,07/08/2015,189.50,Protective Clothing & Uniforms - General,Miscellaneous and Specialty Retail Stores,GPC
Statement 18/07/2015 to 17/08/2015,Chief Executive,ROYAL MAIL,27/07/2015,173.50,Postal Services - General,Postage Stamps,GPC
Statement 18/07/2015 to 17/08/2015,Chief Executive,ROYAL MAIL,07/08/2015,54.00,Postal Services - General,Postage Stamps,GPC
Statement 18/07/2015 to 17/08/2015,Chief Executive,SAINSBURY'S S/MKT,27/07/2015,11.60,Other Expenditure - General,"Grocery Stores, Supermarkets",GPC
Statement 18/07/2015 to 17/08/2015,Chief Executive,STATIONERY OFFICE BOOK,12/08/2015,47.50,Other Expenditure - General,Catalog Merchants,GPC
Statement 18/07/2015 to 17/08/2015,Chief Executive,USK AND RAILWAY INN,10/08/2015,145.00,Other Expenditure - General,"Lodging-Hotels, Motels, Resorts",GPC
Statement 18/07/2015 to 17/08/2015,Chief Executive,WILKO RETAIL LIMIT,27/07/2015,8.00,Other Expenditure - General,Household Appliance Stores,GPC
Statement 18/07/2015 to 17/08/2015,Chief Executive,WWW GREATGREENSYSTEMS COM,23/07/2015,77.46,Other Expenditure - General,"Lawn and Garden Supply Stores, Nurseries",GPC
Statement 18/07/2015 to 17/08/2015,Chief Executive,WWW.NEOPOST.CO.UK,04/08/2015,618.00,Postal Services - General,"Stationary, Office Supplies, Printing and Writing",GPC
Statement 18/07/2015 to 17/08/2015,Chief Executive,WWW.OFCOM.ORG.UK,03/08/2015,168.00,Other Expenditure - General,"Accounting, Auditing, and Bookkeeping Services",GPC
Statement 18/07/2015 to 17/08/2015,Chief Executive,WWW.STAPLES.CO.UK,29/07/2015,71.88,Stationery - General,"Stationery, Office, and School Supply Stores",GPC
Statement 18/07/2015 to 17/08/2015,Corporate Resources,123 HIRE LTD,07/08/2015,1000.00,Other Services - General,"Equipment Rental and Leasing Services, Tool Rental",GPC
Statement 18/07/2015 to 17/08/2015,Corporate Resources,A T HOUGHTON,29/07/2015,33.53,R&M of Vehicles-Non Contract - General,Miscellaneous Automotive Dealers -  Not Elsewhere,GPC
Statement 18/07/2015 to 17/08/2015,Corporate Resources,ACM TRAINING,24/07/2015,999.00,Training Expenses - General,Professional Services-Not Elsewhere Classified,GPC
Statement 18/07/2015 to 17/08/2015,Corporate Resources,Amazon Prime,12/08/2015,79.00,Other Services - General,Continuity/Subscription Merchants,GPC
Statement 18/07/2015 to 17/08/2015,Corporate Resources,Amazon Svcs Europe SAR,24/07/2015,12.96,Other Services - General,Book Stores,GPC
Statement 18/07/2015 to 17/08/2015,Corporate Resources,Amazon Svcs Europe SAR,09/08/2015,87.50,Protective Clothing & Uniforms - General,Book Stores,GPC
Statement 18/07/2015 to 17/08/2015,Corporate Resources,Amazon Svcs Europe SAR,29/07/2015,19.95,Stationery - General,Book Stores,GPC
Statement 18/07/2015 to 17/08/2015,Corporate Resources,Amazon Svcs Europe SAR,06/08/2015,5.97,Training Expenses - General,Book Stores,GPC
Statement 18/07/2015 to 17/08/2015,Corporate Resources,Amazon UK Marketplace,11/08/2015,13.98,General Equipment - General,Book Stores,GPC
Statement 18/07/2015 to 17/08/2015,Corporate Resources,Amazon UK Marketplace,31/07/2015,24.92,Materials - General,Miscellaneous and Specialty Retail Stores,GPC
Statement 18/07/2015 to 17/08/2015,Corporate Resources,Amazon UK Marketplace,20/07/2015,679.80,Operational Equipment - General,Book Stores,GPC
Statement 18/07/2015 to 17/08/2015,Corporate Resources,Amazon UK Marketplace,23/07/2015,16.47,Other Services - General,Miscellaneous and Specialty Retail Stores,GPC
Statement 18/07/2015 to 17/08/2015,Corporate Resources,Amazon UK Marketplace,23/07/2015,46.98,Other Services - General,Miscellaneous and Specialty Retail Stores,GPC
Statement 18/07/2015 to 17/08/2015,Corporate Resources,Amazon UK Marketplace,21/07/2015,5.75,Stationery - General,Book Stores,GPC
Statement 18/07/2015 to 17/08/2015,Corporate Resources,Amazon UK Marketplace,27/07/2015,7.47,Stationery - General,Miscellaneous and Specialty Retail Stores,GPC
Statement 18/07/2015 to 17/08/2015,Corporate Resources,Amazon UK Marketplace,03/08/2015,3.40,Stationery - General,Book Stores,GPC
Statement 18/07/2015 to 17/08/2015,Corporate Resources,Amazon UK Marketplace,06/08/2015,3.40,Stationery - General,Miscellaneous and Specialty Retail Stores,GPC
Statement 18/07/2015 to 17/08/2015,Corporate Resources,Amazon UK Marketplace,07/08/2015,11.99,Stationery - General,Miscellaneous and Specialty Retail Stores,GPC
Statement 18/07/2015 to 17/08/2015,Corporate Resources,Amazon UK Marketplace,07/08/2015,19.00,Training Expenses - General,Miscellaneous and Specialty Retail Stores,GPC
Statement 18/07/2015 to 17/08/2015,Corporate Resources,Amazon UK Marketplace,07/08/2015,6.49,Training Expenses - General,Miscellaneous and Specialty Retail Stores,GPC
Statement 18/07/2015 to 17/08/2015,Corporate Resources,Amazon UK Retail,24/07/2015,146.43,Operational Equipment - General,Direct Marketers - Other,GPC
Statement 18/07/2015 to 17/08/2015,Corporate Resources,Amazon UK Retail,07/08/2015,58.08,Other Expenditure - General,Direct Marketers - Other,GPC
Statement 18/07/2015 to 17/08/2015,Corporate Resources,Amazon UK Retail,15/08/2015,13.29,Other Expenditure - General,Direct Marketers - Other,GPC
Statement 18/07/2015 to 17/08/2015,Corporate Resources,Amazon UK Retail,22/07/2015,9.96,Other Services - General,Direct Marketers - Other,GPC
Statement 18/07/2015 to 17/08/2015,Corporate Resources,Amazon UK Retail,25/07/2015,38.58,Other Services - General,Direct Marketers - Other,GPC
Statement 18/07/2015 to 17/08/2015,Corporate Resources,Amazon UK Retail,06/08/2015,56.47,Telephones - Mobile Phones,Direct Marketers - Other,GPC
Statement 18/07/2015 to 17/08/2015,Corporate Resources,Amazon UK Retail,06/08/2015,16.13,Telephones - Mobile Phones,Direct Marketers - Other,GPC
Statement 18/07/2015 to 17/08/2015,Corporate Resources,AMT COFFEE,14/08/2015,2.80,Subsistence - General,"Eating Places, Restaurants",GPC
Statement 18/07/2015 to 17/08/2015,Corporate Resources,APCOA - NWR LEEDS,17/07/2015,11.00,Casual/Essential - General,Automobile Parking Lots and Garages,GPC
Statement 18/07/2015 to 17/08/2015,Corporate Resources,ARGOS LTD,05/08/2015,43.98,Materials - General,Discount Stores,GPC
Statement 18/07/2015 to 17/08/2015,Corporate Resources,AS SUSHI & MORE LTD,11/08/2015,25.00,Subsistence - General,"Eating Places, Restaurants",GPC
Statement 18/07/2015 to 17/08/2015,Corporate Resources,AS SUSHI & MORE LTD,12/08/2015,21.00,Subsistence - General,"Eating Places, Restaurants",GPC
Statement 18/07/2015 to 17/08/2015,Corporate Resources,ASDA STORES 4477,17/07/2015,4.89,Other Expenditure - General,"Grocery Stores, Supermarkets",GPC
Statement 18/07/2015 to 17/08/2015,Corporate Resources,ASDA STORES 4477,22/07/2015,3.89,Other Expenditure - General,"Grocery Stores, Supermarkets",GPC
Statement 18/07/2015 to 17/08/2015,Corporate Resources,ASDA STORES 4477,22/07/2015,0.89,Other Expenditure - General,"Grocery Stores, Supermarkets",GPC
Statement 18/07/2015 to 17/08/2015,Corporate Resources,ASDA STORES 4477,25/07/2015,9.00,Other Expenditure - General,"Grocery Stores, Supermarkets",GPC
Statement 18/07/2015 to 17/08/2015,Corporate Resources,ASDA STORES 4477,05/08/2015,5.19,Other Expenditure - General,"Grocery Stores, Supermarkets",GPC
Statement 18/07/2015 to 17/08/2015,Corporate Resources,ASDA STORES 4477,08/08/2015,8.14,Other Expenditure - General,"Grocery Stores, Supermarkets",GPC
Statement 18/07/2015 to 17/08/2015,Corporate Resources,ASDA STORES 4533,05/08/2015,6.86,Other Expenditure - General,"Grocery Stores, Supermarkets",GPC
Statement 18/07/2015 to 17/08/2015,Corporate Resources,ASK CHELTENHAM,10/08/2015,70.00,Subsistence - General,"Eating Places, Restaurants",GPC
Statement 18/07/2015 to 17/08/2015,Corporate Resources,BANKSIDE HOUSE,22/07/2015,90.00,Training Expenses - General,"Lodging-Hotels, Motels, Resorts",GPC
Statement 18/07/2015 to 17/08/2015,Corporate Resources,BASC MEMBERSHIP,30/07/2015,61.00,Other Services - General,"Membership Clubs (Sports, Recreation, Athletic), C",GPC
Statement 18/07/2015 to 17/08/2015,Corporate Resources,BENITO'S HAT,24/07/2015,9.15,Subsistence - General,"Eating Places, Restaurants",GPC
Statement 18/07/2015 to 17/08/2015,Corporate Resources,BRADSHAWS DIRECT -,03/08/2015,97.88,Other Services - General,"Lawn and Garden Supply Stores, Nurseries",GPC
Statement 18/07/2015 to 17/08/2015,Corporate Resources,CAFFE NERO,23/07/2015,7.15,Subsistence - General,"Eating Places, Restaurants",GPC
Statement 18/07/2015 to 17/08/2015,Corporate Resources,ClickMeeting,17/07/2015,23.41,Training Expenses - General,Computer Network/Information Services,GPC
Statement 18/07/2015 to 17/08/2015,Corporate Resources,ClickMeeting,11/08/2015,23.41,Training Expenses - General,Computer Network/Information Services,GPC
Statement 18/07/2015 to 17/08/2015,Corporate Resources,ClickMeeting,16/08/2015,23.41,Training Expenses - General,Computer Network/Information Services,GPC
Statement 18/07/2015 to 17/08/2015,Corporate Resources,CO-OP GROUP 070412,22/07/2015,15.70,Other Expenditure - General,"Grocery Stores, Supermarkets",GPC
Statement 18/07/2015 to 17/08/2015,Corporate Resources,COSTA COFFEE,11/08/2015,2.40,Subsistence - General,"Eating Places, Restaurants",GPC
Statement 18/07/2015 to 17/08/2015,Corporate Resources,COTSWOLD GRANGE HOTEL,11/08/2015,75.00,Subsistence - General,"Lodging-Hotels, Motels, Resorts",GPC
Statement 18/07/2015 to 17/08/2015,Corporate Resources,COTSWOLD GRANGE HOTEL,11/08/2015,75.00,Subsistence - General,"Lodging-Hotels, Motels, Resorts",GPC
Statement 18/07/2015 to 17/08/2015,Corporate Resources,COTSWOLD GRANGE HOTEL,11/08/2015,75.00,Subsistence - General,"Lodging-Hotels, Motels, Resorts",GPC
Statement 18/07/2015 to 17/08/2015,Corporate Resources,COTSWOLD GRANGE HOTEL,11/08/2015,75.00,Subsistence - General,"Lodging-Hotels, Motels, Resorts",GPC
Statement 18/07/2015 to 17/08/2015,Corporate Resources,COTSWOLD GRANGE HOTEL,11/08/2015,75.00,Subsistence - General,"Lodging-Hotels, Motels, Resorts",GPC
Statement 18/07/2015 to 17/08/2015,Corporate Resources,COTSWOLD GRANGE HOTEL,11/08/2015,423.00,Subsistence - General,"Lodging-Hotels, Motels, Resorts",GPC
Statement 18/07/2015 to 17/08/2015,Corporate Resources,CROSS COUNTRY,11/08/2015,162.50,Training Expenses - General,Passenger Railways,GPC
Statement 18/07/2015 to 17/08/2015,Corporate Resources,CROSS COUNTRY CC,05/08/2015,167.50,Training Expenses - General,Passenger Railways,GPC
Statement 18/07/2015 to 17/08/2015,Corporate Resources,CURRYS S/S,13/08/2015,18.00,Materials - General,"RADIO, TELEVISION, AND STEREO STORES (ELECTRONIC STORES)",GPC
Statement 18/07/2015 to 17/08/2015,Corporate Resources,CURRYS S/S,13/08/2015,18.33,Materials - General,"RADIO, TELEVISION, AND STEREO STORES (ELECTRONIC STORES)",GPC
Statement 18/07/2015 to 17/08/2015,Corporate Resources,DASHI,10/08/2015,7.15,Subsistence - General,"Eating Places, Restaurants",GPC
Statement 18/07/2015 to 17/08/2015,Corporate Resources,DESTINET LTD,30/07/2015,174.00,Publicity/Marketing - Information Provision,Advertising Services,GPC
Statement 18/07/2015 to 17/08/2015,Corporate Resources,DIGITALID.CO.UK,06/08/2015,312.60,Other Expenditure - General,"Stationery, Office, and School Supply Stores",GPC
Statement 18/07/2015 to 17/08/2015,Corporate Resources,EAST MIDLANDS MARKET HAR,21/07/2015,6.50,Casual/Essential - General,Automobile Parking Lots and Garages,GPC
Statement 18/07/2015 to 17/08/2015,Corporate Resources,EAST MIDLANDS MARKET HAR,23/07/2015,6.50,Casual/Essential - General,Automobile Parking Lots and Garages,GPC
Statement 18/07/2015 to 17/08/2015,Corporate Resources,EAST MIDLANDS MARKET HAR,24/07/2015,10.50,Casual/Essential - General,Automobile Parking Lots and Garages,GPC
Statement 18/07/2015 to 17/08/2015,Corporate Resources,EAST MIDLANDS MARKET HAR,05/08/2015,6.50,Casual/Essential - General,Automobile Parking Lots and Garages,GPC
Statement 18/07/2015 to 17/08/2015,Corporate Resources,EAST MIDLANDS MARKET HAR,21/07/2015,10.50,Public Transport -  Staff - General,Automobile Parking Lots and Garages,GPC
Statement 18/07/2015 to 17/08/2015,Corporate Resources,EAST MIDLANDS MARKET HAR,22/07/2015,10.50,Public Transport -  Staff - General,Automobile Parking Lots and Garages,GPC
Statement 18/07/2015 to 17/08/2015,Corporate Resources,EAST MIDLANDS MARKET HAR,28/07/2015,6.50,Public Transport -  Staff - General,Automobile Parking Lots and Garages,GPC
Statement 18/07/2015 to 17/08/2015,Corporate Resources,EAST MIDLANDS MARKET HAR,29/07/2015,10.50,Public Transport -  Staff - General,Automobile Parking Lots and Garages,GPC
Statement 18/07/2015 to 17/08/2015,Corporate Resources,EAST MIDLANDS MARKET HAR,30/07/2015,10.50,Public Transport -  Staff - General,Automobile Parking Lots and Garages,GPC
Statement 18/07/2015 to 17/08/2015,Corporate Resources,EAST MIDLANDS MARKET HAR,31/07/2015,6.50,Public Transport -  Staff - General,Automobile Parking Lots and Garages,GPC
Statement 18/07/2015 to 17/08/2015,Corporate Resources,EAST MIDLANDS MARKET HAR,04/08/2015,10.50,Public Transport -  Staff - General,Automobile Parking Lots and Garages,GPC
Statement 18/07/2015 to 17/08/2015,Corporate Resources,EAST MIDLANDS MARKET HAR,11/08/2015,27.50,Public Transport -  Staff - General,Automobile Parking Lots and Garages,GPC
Statement 18/07/2015 to 17/08/2015,Corporate Resources,EAST MIDLANDS MARKET HAR,13/08/2015,10.50,Public Transport -  Staff - General,Automobile Parking Lots and Garages,GPC
Statement 18/07/2015 to 17/08/2015,Corporate Resources,EAST MIDLANDS MARKET HAR,14/08/2015,10.50,Public Transport -  Staff - General,Automobile Parking Lots and Garages,GPC
Statement 18/07/2015 to 17/08/2015,Corporate Resources,EAST MIDLANDS TRAI,23/07/2015,6.50,Public Transport -  Staff - General,Passenger Railways,GPC
Statement 18/07/2015 to 17/08/2015,Corporate Resources,EASYHOTEL    OLD ST,22/07/2015,61.95,Training Expenses - General,"Lodging-Hotels, Motels, Resorts",GPC
Statement 18/07/2015 to 17/08/2015,Corporate Resources,ESSO MALTHURST  MEASHAM,02/08/2015,2.00,Other Expenditure - General,Service Stations (with or without Ancillary Servic,GPC
Statement 18/07/2015 to 17/08/2015,Corporate Resources,FINE BURGER CO,23/07/2015,11.75,Subsistence - General,"Eating Places, Restaurants",GPC
Statement 18/07/2015 to 17/08/2015,Corporate Resources,FOREIGN EXCHANGE FEE,23/07/2015,1.93,IT Equipment - Software,Misc-Unknown,GPC
Statement 18/07/2015 to 17/08/2015,Corporate Resources,FOREIGN EXCHANGE FEE,30/07/2015,0.61,Other Equipment & Materials - General,Misc-Unknown,GPC
Statement 18/07/2015 to 17/08/2015,Corporate Resources,FOREIGN EXCHANGE FEE,07/08/2015,2.87,Other Equipment & Materials - General,Misc-Unknown,GPC
Statement 18/07/2015 to 17/08/2015,Corporate Resources,FOREIGN EXCHANGE FEE,12/08/2015,1.05,Subscriptions - General,Misc-Unknown,GPC
Statement 18/07/2015 to 17/08/2015,Corporate Resources,FTC ECOM,04/08/2015,53.50,Training Expenses - General,Schools and Educational Services-Not Elsewhere Cla,GPC
Statement 18/07/2015 to 17/08/2015,Corporate Resources,GANTTIC LLC,11/08/2015,38.01,Subscriptions - General,Miscellaneous and Specialty Retail Stores,GPC
Statement 18/07/2015 to 17/08/2015,Corporate Resources,GEORGE WALKER,23/07/2015,22.50,Other Services - General,"Building Materials, Lumber Stores",GPC
Statement 18/07/2015 to 17/08/2015,Corporate Resources,GUARDIAN NEWS & MEDIA,03/08/2015,2800.00,Advertising - General,Miscellaneous Publishing and  Printing,GPC
Statement 18/07/2015 to 17/08/2015,Corporate Resources,HALFORDS 0428,24/07/2015,63.50,Other Services - General,Bicycle Shops-Sales and Service,GPC
Statement 18/07/2015 to 17/08/2015,Corporate Resources,HALFORDS 0428,10/08/2015,19.16,Other Services - General,Bicycle Shops-Sales and Service,GPC
Statement 18/07/2015 to 17/08/2015,Corporate Resources,HALFORDS 0428,13/08/2015,6.66,Other Services - General,Bicycle Shops-Sales and Service,GPC
Statement 18/07/2015 to 17/08/2015,Corporate Resources,HALFORDS 0560,24/07/2015,21.65,Other Services - General,Bicycle Shops-Sales and Service,GPC
Statement 18/07/2015 to 17/08/2015,Corporate Resources,HARLOW BROS LTD,10/08/2015,18.93,Operational Equipment - General,"Building Materials, Lumber Stores",GPC
Statement 18/07/2015 to 17/08/2015,Corporate Resources,HARLOW BROS LTD,07/08/2015,70.69,Other Services - General,"Building Materials, Lumber Stores",GPC
Statement 18/07/2015 to 17/08/2015,Corporate Resources,HARLOW BROS LTD,11/08/2015,11.74,Other Services - General,"Building Materials, Lumber Stores",GPC
Statement 18/07/2015 to 17/08/2015,Corporate Resources,HARLOW BROS LTD,12/08/2015,6.36,Other Services - General,"Building Materials, Lumber Stores",GPC
Statement 18/07/2015 to 17/08/2015,Corporate Resources,HAYMARKET PUBLISHI,03/08/2015,1000.00,Advertising - General,"Books, Periodicals, and Newspapers",GPC
Statement 18/07/2015 to 17/08/2015,Corporate Resources,HEALTHCARE CONFERENCES,20/07/2015,328.50,Training Expenses - General,Business Services-Not Elsewhere Classified,GPC
Statement 18/07/2015 to 17/08/2015,Corporate Resources,HIGGOTTS,27/07/2015,46.00,Other Services - General,Landscaping and Horticultural Services,GPC
Statement 18/07/2015 to 17/08/2015,Corporate Resources,HMCOURTS-SERVICE.G,12/08/2015,210.00,Other Expenditure - General,Fines,GPC
Statement 18/07/2015 to 17/08/2015,Corporate Resources,HOLROSE LTD,06/08/2015,63.36,Materials - General,"Sewing, Needlework, Fabric, and Piece Goods Stores",GPC
Statement 18/07/2015 to 17/08/2015,Corporate Resources,HOME BARGAINS COALVILL,05/08/2015,4.97,Other Services - General,Hardware Stores,GPC
Statement 18/07/2015 to 17/08/2015,Corporate Resources,HOOTSUITE MEDIA INC.,29/07/2015,22.35,Other Equipment & Materials - General,Business Services-Not Elsewhere Classified,GPC
Statement 18/07/2015 to 17/08/2015,Corporate Resources,HOOTSUITE MEDIA INC.,06/08/2015,104.20,Other Equipment & Materials - General,Business Services-Not Elsewhere Classified,GPC
Statement 18/07/2015 to 17/08/2015,Corporate Resources,HTTP://ACE.APPRENTICES,27/07/2015,22.00,Training Expenses - General,"Management, Consulting and Public Relations Servic",GPC
Statement 18/07/2015 to 17/08/2015,Corporate Resources,INN THE PARK,22/07/2015,9.20,Subsistence - General,"Eating Places, Restaurants",GPC
Statement 18/07/2015 to 17/08/2015,Corporate Resources,IPF,06/08/2015,290.00,Training Expenses - General,"Accounting, Auditing, and Bookkeeping Services",GPC
Statement 18/07/2015 to 17/08/2015,Corporate Resources,JOHN LEWIS,23/07/2015,29.16,Other Expenditure - General,Department Stores,GPC
Statement 18/07/2015 to 17/08/2015,Corporate Resources,KP CLUB,06/08/2015,183.32,Training Expenses - General,"Membership Clubs (Sports, Recreation, Athletic), C",GPC
Statement 18/07/2015 to 17/08/2015,Corporate Resources,LE FEVRES STORES,17/07/2015,5.66,Other Expenditure - General,"Grocery Stores, Supermarkets",GPC
Statement 18/07/2015 to 17/08/2015,Corporate Resources,LINKEDIN-2979836353,03/08/2015,227.94,Recruitment Advertising - General,Continuity/Subscription Merchants,GPC
Statement 18/07/2015 to 17/08/2015,Corporate Resources,LINKEDIN-2980117483,03/08/2015,227.94,Recruitment Advertising - General,Continuity/Subscription Merchants,GPC
Statement 18/07/2015 to 17/08/2015,Corporate Resources,LINKEDIN-300 2953313,10/08/2015,227.94,Recruitment Advertising - General,Continuity/Subscription Merchants,GPC
Statement 18/07/2015 to 17/08/2015,Corporate Resources,LUL TICKET MACHINE,24/07/2015,50.00,Casual/Essential - General,Passenger Railways,GPC
Statement 18/07/2015 to 17/08/2015,Corporate Resources,LUL TICKET MACHINE,30/07/2015,10.00,Casual/Essential - General,Passenger Railways,GPC
Statement 18/07/2015 to 17/08/2015,Corporate Resources,LUL TICKET MACHINE,23/07/2015,10.00,Public Transport -  Staff - General,Passenger Railways,GPC
Statement 18/07/2015 to 17/08/2015,Corporate Resources,LUL TICKET MACHINE,24/07/2015,50.00,Public Transport -  Staff - General,Passenger Railways,GPC
Statement 18/07/2015 to 17/08/2015,Corporate Resources,LUL TICKET MACHINE,24/07/2015,20.00,Public Transport -  Staff - General,Passenger Railways,GPC
Statement 18/07/2015 to 17/08/2015,Corporate Resources,LUL TICKET OFFICE,23/07/2015,15.00,Casual/Essential - General,Passenger Railways,GPC
Statement 18/07/2015 to 17/08/2015,Corporate Resources,OPP LTD STERLING WEB,13/08/2015,205.50,Training Expenses - General,Business Services-Not Elsewhere Classified,GPC
Statement 18/07/2015 to 17/08/2015,Corporate Resources,OPTIMAL WORKSHOP,22/07/2015,70.17,IT Equipment - Software,Computer Software Stores,GPC
Statement 18/07/2015 to 17/08/2015,Corporate Resources,OYSTER RENEW WEB,27/07/2015,8.33,Public Transport -  Staff - General,Passenger Railways,GPC
Statement 18/07/2015 to 17/08/2015,Corporate Resources,OYSTER RENEW WEB,27/07/2015,12.50,Public Transport -  Staff - General,Passenger Railways,GPC
Statement 18/07/2015 to 17/08/2015,Corporate Resources,OYSTER RENEW WEB,04/08/2015,50.00,Public Transport -  Staff - General,Passenger Railways,GPC
Statement 18/07/2015 to 17/08/2015,Corporate Resources,OYSTER RENEW WEB,05/08/2015,50.00,Public Transport -  Staff - General,Passenger Railways,GPC
Statement 18/07/2015 to 17/08/2015,Corporate Resources,P & R BUILDING SUPPLIE,27/07/2015,21.60,Other Services - General,"Building Materials, Lumber Stores",GPC
Statement 18/07/2015 to 17/08/2015,Corporate Resources,PAYPAL  TOBY THOMAS,04/08/2015,145.00,Training Expenses - General,"Colleges, Universities, Professional Schools, and",GPC
Statement 18/07/2015 to 17/08/2015,Corporate Resources,PAYPAL  TOBY THOMAS,04/08/2015,370.00,Training Expenses - General,"Colleges, Universities, Professional Schools, and",GPC
Statement 18/07/2015 to 17/08/2015,Corporate Resources,POST OFFICE COUNTER,29/07/2015,11.00,Subsistence - General,Postage Stamps,GPC
Statement 18/07/2015 to 17/08/2015,Corporate Resources,POUNDSTRETCHER 292,06/08/2015,3.99,Other Services - General,"Drapery, Window Coverings, and Upholstery Stores",GPC
Statement 18/07/2015 to 17/08/2015,Corporate Resources,PREMIER INN44034360,17/07/2015,340.21,Training Expenses - General,PREMIER TRAVEL,GPC
Statement 18/07/2015 to 17/08/2015,Corporate Resources,PREMIER INN44521260,10/08/2015,73.00,Subsistence - General,PREMIER TRAVEL,GPC
Statement 18/07/2015 to 17/08/2015,Corporate Resources,PREMIER INN44521260,10/08/2015,73.00,Subsistence - General,PREMIER TRAVEL,GPC
Statement 18/07/2015 to 17/08/2015,Corporate Resources,PREMIER INN44531610,21/07/2015,342.08,Training Expenses - General,PREMIER TRAVEL,GPC
Statement 18/07/2015 to 17/08/2015,Corporate Resources,PREMIER INN44531610,21/07/2015,342.08,Training Expenses - General,PREMIER TRAVEL,GPC
Statement 18/07/2015 to 17/08/2015,Corporate Resources,PREMIER INN44531610,21/07/2015,262.50,Training Expenses - General,PREMIER TRAVEL,GPC
Statement 18/07/2015 to 17/08/2015,Corporate Resources,PRET A MANGER,23/07/2015,1.75,Subsistence - General,"Eating Places, Restaurants",GPC
Statement 18/07/2015 to 17/08/2015,Corporate Resources,PRET A MANGER,23/07/2015,6.69,Subsistence - General,"Eating Places, Restaurants",GPC
Statement 18/07/2015 to 17/08/2015,Corporate Resources,PRET A MANGER,24/07/2015,8.93,Subsistence - General,"Eating Places, Restaurants",GPC
Statement 18/07/2015 to 17/08/2015,Corporate Resources,PROSPECT GROUP,06/08/2015,12.77,Other Expenditure - General,Hardware Stores,GPC
Statement 18/07/2015 to 17/08/2015,Corporate Resources,PSC BUSINESS CONSULTAN,30/07/2015,99.00,Training Expenses - General,"Management, Consulting and Public Relations Servic",GPC
Statement 18/07/2015 to 17/08/2015,Corporate Resources,SAINSBURYS S/MKTS,27/07/2015,21.50,Materials - General,"Grocery Stores, Supermarkets",GPC
Statement 18/07/2015 to 17/08/2015,Corporate Resources,SCREWFIX,05/08/2015,49.54,Operational Equipment - General,"Building Materials, Lumber Stores",GPC
Statement 18/07/2015 to 17/08/2015,Corporate Resources,SCREWFIX,18/07/2015,12.13,Other Expenditure - General,"Building Materials, Lumber Stores",GPC
Statement 18/07/2015 to 17/08/2015,Corporate Resources,SCREWFIX,18/07/2015,2.50,Other Expenditure - General,"Building Materials, Lumber Stores",GPC
Statement 18/07/2015 to 17/08/2015,Corporate Resources,SCREWFIX,23/07/2015,12.50,Other Expenditure - General,"Building Materials, Lumber Stores",GPC
Statement 18/07/2015 to 17/08/2015,Corporate Resources,SCREWFIX,06/08/2015,22.18,Other Expenditure - General,"Building Materials, Lumber Stores",GPC
Statement 18/07/2015 to 17/08/2015,Corporate Resources,SLB SUPPLIES LTD,31/07/2015,56.00,Other Services - General,Pet Shops-Pet Food and Supplies,GPC
Statement 18/07/2015 to 17/08/2015,Corporate Resources,STAPLES UK,19/07/2015,5.59,Stationery - General,"Stationery, Office, and School Supply Stores",GPC
Statement 18/07/2015 to 17/08/2015,Corporate Resources,SURVEYMONKEY.COM,13/08/2015,250.00,IT Equipment - Licences,Computer Network/Information Services,GPC
Statement 18/07/2015 to 17/08/2015,Corporate Resources,TESCO STORES 2044,08/08/2015,9.41,Other Expenditure - General,"Grocery Stores, Supermarkets",GPC
Statement 18/07/2015 to 17/08/2015,Corporate Resources,THE OX,11/08/2015,99.00,Subsistence - General,"Lodging-Hotels, Motels, Resorts",GPC
Statement 18/07/2015 to 17/08/2015,Corporate Resources,THE OX,12/08/2015,9.95,Subsistence - General,"Lodging-Hotels, Motels, Resorts",GPC
Statement 18/07/2015 to 17/08/2015,Corporate Resources,THE STABLE,11/08/2015,10.00,Subsistence - General,"Eating Places, Restaurants",GPC
Statement 18/07/2015 to 17/08/2015,Corporate Resources,TRAVELODGE WEBSITE,10/08/2015,72.78,Training Expenses - General,Travelodge,GPC
Statement 18/07/2015 to 17/08/2015,Corporate Resources,TRAVELODGE WEBSITE,14/08/2015,100.34,Training Expenses - General,Travelodge,GPC
Statement 18/07/2015 to 17/08/2015,Corporate Resources,UPT - EMT NOTTINGHAM RAI,16/07/2015,4.00,Public Transport -  Staff - General,Professional Services-Not Elsewhere Classified,GPC
Statement 18/07/2015 to 17/08/2015,Corporate Resources,WETHERSPOONS,17/07/2015,2.30,Subsistence - General,"Eating Places, Restaurants",GPC
Statement 18/07/2015 to 17/08/2015,Corporate Resources,WETHERSPOONS,17/07/2015,5.64,Subsistence - General,"Eating Places, Restaurants",GPC
Statement 18/07/2015 to 17/08/2015,Corporate Resources,WETHERSPOONS,17/07/2015,5.28,Subsistence - General,"Eating Places, Restaurants",GPC
Statement 18/07/2015 to 17/08/2015,Corporate Resources,WH SMITH,21/07/2015,9.99,IT Equipment - Purchase - Hardware,News Dealers and Newsstands,GPC
Statement 18/07/2015 to 17/08/2015,Corporate Resources,WH SMITH,31/07/2015,4.99,Newspapers & Periodicals - General,News Dealers and Newsstands,GPC
Statement 18/07/2015 to 17/08/2015,Corporate Resources,WH SMITH,14/08/2015,3.99,Newspapers & Periodicals - General,News Dealers and Newsstands,GPC
Statement 18/07/2015 to 17/08/2015,Corporate Resources,WHITE & BLACK COFFEE C,12/08/2015,4.50,Subsistence - General,Fast-Food Restaurants (Quick Payment Service Pilot,GPC
Statement 18/07/2015 to 17/08/2015,Corporate Resources,WICKES,07/08/2015,67.30,Operational Equipment - General,"Building Materials, Lumber Stores",GPC
Statement 18/07/2015 to 17/08/2015,Corporate Resources,WICKES,12/08/2015,22.49,Other Expenditure - General,"Building Materials, Lumber Stores",GPC
Statement 18/07/2015 to 17/08/2015,Corporate Resources,WICKES,26/07/2015,4.49,Other Services - General,"Building Materials, Lumber Stores",GPC
Statement 18/07/2015 to 17/08/2015,Corporate Resources,WICKES,09/08/2015,27.46,Other Services - General,"Building Materials, Lumber Stores",GPC
Statement 18/07/2015 to 17/08/2015,Corporate Resources,WICKES,12/08/2015,43.95,Other Services - General,"Building Materials, Lumber Stores",GPC
Statement 18/07/2015 to 17/08/2015,Corporate Resources,WICKES,14/08/2015,13.32,Other Services - General,"Building Materials, Lumber Stores",GPC
Statement 18/07/2015 to 17/08/2015,Corporate Resources,WICKES,11/08/2015,48.88,R & M of Buildings - General,"Building Materials, Lumber Stores",GPC
Statement 18/07/2015 to 17/08/2015,Corporate Resources,WICKES HINCKLEY,12/08/2015,18.33,Other Services - General,"Building Materials, Lumber Stores",GPC
Statement 18/07/2015 to 17/08/2015,Corporate Resources,WILKO RETAIL LIMIT,19/07/2015,8.75,Other Expenditure - General,Household Appliance Stores,GPC
Statement 18/07/2015 to 17/08/2015,Corporate Resources,WM MORRISON 054,01/08/2015,17.61,Other Expenditure - General,"Grocery Stores, Supermarkets",GPC
Statement 18/07/2015 to 17/08/2015,Corporate Resources,WM MORRISON 054,09/08/2015,3.87,Other Expenditure - General,"Grocery Stores, Supermarkets",GPC
Statement 18/07/2015 to 17/08/2015,Corporate Resources,WM MORRISON 054,13/08/2015,7.44,Other Expenditure - General,"Grocery Stores, Supermarkets",GPC
Statement 18/07/2015 to 17/08/2015,Corporate Resources,WP-HEMMING GROUP L,29/07/2015,249.00,Training Expenses - General,Business Services-Not Elsewhere Classified,GPC
Statement 18/07/2015 to 17/08/2015,Corporate Resources,WWW.BETTERINKS.CO.UK,28/07/2015,13.00,Subsistence - General,"Stationery, Office, and School Supply Stores",GPC
Statement 18/07/2015 to 17/08/2015,Corporate Resources,WWW.CIPFA.ORG.UK/PFMCO,29/07/2015,295.00,Training Expenses - General,Membership Organizations-Not Elsewhere Classified,GPC
Statement 18/07/2015 to 17/08/2015,Corporate Resources,WWW.CIPS.ORG,12/08/2015,118.32,Training Expenses - General,Membership Organizations-Not Elsewhere Classified,GPC
Statement 18/07/2015 to 17/08/2015,Corporate Resources,WWW.CIPS.ORG,12/08/2015,118.32,Training Expenses - General,Membership Organizations-Not Elsewhere Classified,GPC
Statement 18/07/2015 to 17/08/2015,Corporate Resources,WWW.EQUIP4WORK.CO.UK,28/07/2015,140.00,Operational Equipment - General,"Stationery, Office, and School Supply Stores",GPC
Statement 18/07/2015 to 17/08/2015,Corporate Resources,WWW.MICRODRAINAGE.CO.U,11/08/2015,507.26,Training Expenses - General,Computer and Data Processing Services,GPC
Statement 18/07/2015 to 17/08/2015,Corporate Resources,WWW.MICRODRAINAGE.CO.U,13/08/2015,-40.00,Training Expenses - General,Computer and Data Processing Services,GPC
Statement 18/07/2015 to 17/08/2015,Corporate Resources,WWW.POSTURITE.CO.UK,03/08/2015,113.82,General Equipment - General,Commercial Furniture,GPC
Statement 18/07/2015 to 17/08/2015,Corporate Resources,WWW.QUARRYING.ORG,22/07/2015,120.00,Training Expenses - General,Membership Organizations-Not Elsewhere Classified,GPC
Statement 18/07/2015 to 17/08/2015,Corporate Resources,WWW.WHOLESALECATERINGE,06/08/2015,29.88,Protective Clothing & Uniforms - General,Miscellaneous and Specialty Retail Stores,GPC
Statement 18/07/2015 to 17/08/2015,E&T,Amazon Svcs Europe SAR,24/07/2015,1.29,Books - General,Book Stores,GPC
Statement 18/07/2015 to 17/08/2015,E&T,Amazon Svcs Europe SAR,27/07/2015,5.25,Books - General,Book Stores,GPC
Statement 18/07/2015 to 17/08/2015,E&T,Amazon Svcs Europe SAR,28/07/2015,1.37,Books - General,Book Stores,GPC
Statement 18/07/2015 to 17/08/2015,E&T,Amazon UK Marketplace,24/07/2015,36.58,Books - General,Book Stores,GPC
Statement 18/07/2015 to 17/08/2015,E&T,Amazon UK Marketplace,26/07/2015,12.48,Books - General,Book Stores,GPC
Statement 18/07/2015 to 17/08/2015,E&T,Amazon UK Marketplace,02/08/2015,1.79,Books - General,Book Stores,GPC
Statement 18/07/2015 to 17/08/2015,E&T,Amazon UK Marketplace,27/07/2015,3.65,Materials - General,Miscellaneous and Specialty Retail Stores,GPC
Statement 18/07/2015 to 17/08/2015,E&T,Amazon UK Marketplace,28/07/2015,2.69,Materials - General,Miscellaneous and Specialty Retail Stores,GPC
Statement 18/07/2015 to 17/08/2015,E&T,Amazon UK Marketplace,12/08/2015,4.17,Materials - General,Miscellaneous and Specialty Retail Stores,GPC
Statement 18/07/2015 to 17/08/2015,E&T,Amazon UK Marketplace,12/08/2015,5.37,Materials - General,Miscellaneous and Specialty Retail Stores,GPC
Statement 18/07/2015 to 17/08/2015,E&T,Amazon UK Marketplace,13/08/2015,5.25,Materials - General,Miscellaneous and Specialty Retail Stores,GPC
Statement 18/07/2015 to 17/08/2015,E&T,Amazon UK Marketplace,13/08/2015,29.88,Materials - General,Miscellaneous and Specialty Retail Stores,GPC
Statement 18/07/2015 to 17/08/2015,E&T,Amazon UK Marketplace,22/07/2015,5.75,Other Equipment & Materials - General,Miscellaneous and Specialty Retail Stores,GPC
Statement 18/07/2015 to 17/08/2015,E&T,Amazon UK Marketplace,06/08/2015,8.92,Other Equipment & Materials - General,Miscellaneous and Specialty Retail Stores,GPC
Statement 18/07/2015 to 17/08/2015,E&T,Amazon UK Retail,08/08/2015,26.99,Other Allowances/Expenses - General,Direct Marketers - Other,GPC
Statement 18/07/2015 to 17/08/2015,E&T,Amazon UK Retail,08/08/2015,19.99,Other Equipment & Materials - General,Direct Marketers - Other,GPC
Statement 18/07/2015 to 17/08/2015,E&T,Amazon UK Retail,28/07/2015,26.34,Other Expenditure - General,Direct Marketers - Other,GPC
Statement 18/07/2015 to 17/08/2015,E&T,Amazon UK Retail,30/07/2015,11.90,Other Expenditure - General,Direct Marketers - Other,GPC
Statement 18/07/2015 to 17/08/2015,E&T,Amazon UK Retail,31/07/2015,4.90,Other Expenditure - General,Direct Marketers - Other,GPC
Statement 18/07/2015 to 17/08/2015,E&T,Amazon UK Retail,31/07/2015,13.13,Other Expenditure - General,Direct Marketers - Other,GPC
Statement 18/07/2015 to 17/08/2015,E&T,Amazon UK Retail,01/08/2015,9.89,Other Expenditure - General,Direct Marketers - Other,GPC
Statement 18/07/2015 to 17/08/2015,E&T,Amazon UK Retail,11/08/2015,14.45,Other Expenditure - General,Direct Marketers - Other,GPC
Statement 18/07/2015 to 17/08/2015,E&T,ARCO LTD,20/07/2015,40.44,Other Equipment & Materials - General,Industrial Supplies Not Elsewhere Classified,GPC
Statement 18/07/2015 to 17/08/2015,E&T,DWN LIMITED,24/07/2015,18.18,Other Expenditure - General,Miscellaneous and Specialty Retail Stores,GPC
Statement 18/07/2015 to 17/08/2015,E&T,EA HAZARDOUS WASTE-DOM,21/07/2015,54.00,Site Licences - General,Government Services-Not Elsewhere Classified,GPC
Statement 18/07/2015 to 17/08/2015,E&T,EA HAZARDOUS WASTE-DOM,21/07/2015,54.00,Site Licences - General,Government Services-Not Elsewhere Classified,GPC
Statement 18/07/2015 to 17/08/2015,E&T,EA HAZARDOUS WASTE-DOM,21/07/2015,54.00,Site Licences - General,Government Services-Not Elsewhere Classified,GPC
Statement 18/07/2015 to 17/08/2015,E&T,EA HAZARDOUS WASTE-DOM,21/07/2015,54.00,Site Licences - General,Government Services-Not Elsewhere Classified,GPC
Statement 18/07/2015 to 17/08/2015,E&T,EASTMIDLANDSTRAINS,14/08/2015,149.00,Public Transport -  Staff - General,Passenger Railways,GPC
Statement 18/07/2015 to 17/08/2015,E&T,ENVIROMENT AGENCY,03/08/2015,50.00,Private Contractors - Other,Government Services-Not Elsewhere Classified,GPC
Statement 18/07/2015 to 17/08/2015,E&T,LINKEDIN-299 2702333,06/08/2015,227.94,Recruitment Advertising - General,Continuity/Subscription Merchants,GPC
Statement 18/07/2015 to 17/08/2015,E&T,MACHINE MART LTD,07/08/2015,309.00,General Equipment - General,Household Appliance Stores,GPC
Statement 18/07/2015 to 17/08/2015,E&T,RAC MOTORING SERVI,24/07/2015,122.00,R&M of Vehicles-Non Contract - General,Insurance-Sales and Underwriting,GPC
Statement 18/07/2015 to 17/08/2015,E&T,SCREWFIX DIRECT,22/07/2015,14.54,R & M of Buildings - General,"Building Materials, Lumber Stores",GPC
Statement 18/07/2015 to 17/08/2015,E&T,Severn Tren Water,31/07/2015,455.67,Electricity - General,"Utilities-Electric, Gas, Sanitary, Water",GPC
Statement 18/07/2015 to 17/08/2015,E&T,TESCO STORE 2819,22/07/2015,51.92,Private Contractors - General,"Grocery Stores, Supermarkets",GPC
Statement 18/07/2015 to 17/08/2015,E&T,WP-HEMMING GROUP L,22/07/2015,298.80,Training Expenses - General,Business Services-Not Elsewhere Classified,GPC
Statement 18/07/2015 to 17/08/2015,E&T,WWW.DVLA.GOV.UK,10/08/2015,167.50,Road Licences - General,Government Services-Not Elsewhere Classified,GPC
Statement 18/07/2015 to 17/08/2015,E&T,WWW.DVLA.GOV.UK,10/08/2015,227.50,Road Licences - General,Government Services-Not Elsewhere Classified,GPC
Statement 18/07/2015 to 17/08/2015,E&T,WWW.DVLA.GOV.UK,10/08/2015,167.50,Road Licences - General,Government Services-Not Elsewhere Classified,GPC
Statement 18/07/2015 to 17/08/2015,E&T,WWW.DVLA.GOV.UK,10/08/2015,232.50,Road Licences - General,Government Services-Not Elsewhere Classified,GPC
Statement 18/07/2015 to 17/08/2015,E&T,WWW.DVLA.GOV.UK,11/08/2015,167.50,Road Licences - General,Government Services-Not Elsewhere Classified,GPC
Statement 18/07/2015 to 17/08/2015,E&T,WWW.DVLA.GOV.UK,11/08/2015,232.50,Road Licences - General,Government Services-Not Elsewhere Classified,GPC
Statement 18/07/2015 to 17/08/2015,E&T,WWW.DVLA.GOV.UK,11/08/2015,232.50,Road Licences - General,Government Services-Not Elsewhere Classified,GPC
Statement 18/07/2015 to 17/08/2015,E&T,WWW.DVLA.GOV.UK,11/08/2015,167.50,Road Licences - General,Government Services-Not Elsewhere Classified,GPC
Statement 18/07/2015 to 17/08/2015,E&T,WWW.DVLA.GOV.UK,11/08/2015,167.50,Road Licences - General,Government Services-Not Elsewhere Classified,GPC
Statement 18/07/2015 to 17/08/2015,E&T,WWW.DVLA.GOV.UK,11/08/2015,167.50,Road Licences - General,Government Services-Not Elsewhere Classified,GPC
Statement 18/07/2015 to 17/08/2015,E&T,WWW.DVLA.GOV.UK,11/08/2015,167.50,Road Licences - General,Government Services-Not Elsewhere Classified,GPC
Statement 18/07/2015 to 17/08/2015,E&T,WWW.DVLA.GOV.UK,11/08/2015,167.50,Road Licences - General,Government Services-Not Elsewhere Classified,GPC
Statement 18/07/2015 to 17/08/2015,E&T,WWW.DVLA.GOV.UK,11/08/2015,232.50,Road Licences - General,Government Services-Not Elsewhere Classified,GPC
Statement 18/07/2015 to 17/08/2015,E&T,WWW.DVLA.GOV.UK,11/08/2015,167.50,Road Licences - General,Government Services-Not Elsewhere Classified,GPC
Statement 18/07/2015 to 17/08/2015,E&T,WWW.DVLA.GOV.UK,11/08/2015,167.50,Road Licences - General,Government Services-Not Elsewhere Classified,GPC
Statement 18/07/2015 to 17/08/2015,E&T,WWW.DVLA.GOV.UK,11/08/2015,232.50,Road Licences - General,Government Services-Not Elsewhere Classified,GPC
Statement 18/07/2015 to 17/08/2015,E&T,WWW.DVLA.GOV.UK,11/08/2015,232.50,Road Licences - General,Government Services-Not Elsewhere Classified,GPC
Statement 18/07/2015 to 17/08/2015,E&T,WWW.DVLA.GOV.UK,11/08/2015,167.50,Road Licences - General,Government Services-Not Elsewhere Classified,GPC
Statement 18/07/2015 to 17/08/2015,E&T,WWW.DVLA.GOV.UK,11/08/2015,167.50,Road Licences - General,Government Services-Not Elsewhere Classified,GPC
Statement 18/07/2015 to 17/08/2015,E&T,WWW.DVLA.GOV.UK,11/08/2015,167.50,Road Licences - General,Government Services-Not Elsewhere Classified,GPC
Statement 18/07/2015 to 17/08/2015,Leicestershire Highways,SEVERN TRENT WATER,20/07/2015,1667.72,Other Expenditure - General,"Utilities-Electric, Gas, Sanitary, Water",GPC
Statement 18/07/2015 to 17/08/2015,Leicestershire Highways,WWW.DVLA.GOV.UK,10/08/2015,652.50,Road Licences - General,Government Services-Not Elsewhere Classified,GPC
Statement 18/07/2015 to 17/08/2015,Leicestershire Highways,WWW.DVLA.GOV.UK,11/08/2015,142.50,Road Licences - General,Government Services-Not Elsewhere Classified,GPC
Statement 18/07/2015 to 17/08/2015,Leicestershire Highways,WWW.DVLA.GOV.UK,11/08/2015,142.50,Road Licences - General,Government Services-Not Elsewhere Classified,GPC
Statement 18/07/2015 to 17/08/2015,Leicestershire Highways,WWW.DVLA.GOV.UK,11/08/2015,142.50,Road Licences - General,Government Services-Not Elsewhere Classified,GPC
Statement 18/07/2015 to 17/08/2015,Public Health,Amazon Svcs Europe SAR,28/07/2015,35.98,Other Equipment & Materials - General,Book Stores,GPC
Statement 18/07/2015 to 17/08/2015,Public Health,Amazon Svcs Europe SAR,05/08/2015,10.98,Other Expenditure - General,Book Stores,GPC
Statement 18/07/2015 to 17/08/2015,Public Health,Amazon UK Marketplace,04/08/2015,7.40,Other Expenditure - General,Book Stores,GPC
Statement 18/07/2015 to 17/08/2015,Public Health,Amazon UK Marketplace,12/08/2015,2.49,Stationery - General,Book Stores,GPC
Statement 18/07/2015 to 17/08/2015,Public Health,Amazon UK Marketplace,12/08/2015,13.94,Stationery - General,Book Stores,GPC
Statement 18/07/2015 to 17/08/2015,Public Health,Amazon UK Retail,27/07/2015,34.24,Other Expenditure - General,Direct Marketers - Other,GPC
Statement 18/07/2015 to 17/08/2015,Public Health,CHARNWOOD BOROUGH COUNCI,23/07/2015,2.20,Subsistence - General,Automobile Parking Lots and Garages,GPC
Statement 18/07/2015 to 17/08/2015,Public Health,HANCOCK CASH & CARRY,17/07/2015,24.42,Provisions - General,Nondurable Goods Not Elsewhere Classified,GPC
Statement 18/07/2015 to 17/08/2015,Public Health,LOVE2SHOP.CO.UK,10/08/2015,101.80,Public Transport -  Staff - General,"Civic, Social, and Fraternal Associations",GPC
Statement 18/07/2015 to 17/08/2015,Public Health,PARKING LEIC CC,30/07/2015,8.00,Subsistence - General,Government Services-Not Elsewhere Classified,GPC
Statement 18/07/2015 to 17/08/2015,Public Health,THE PRIORY,17/07/2015,27.30,Contract Catering - General,"Eating Places, Restaurants",GPC
Statement 18/07/2015 to 17/08/2015,Public Health,THE PRIORY,17/07/2015,11.35,Contract Catering - General,"Eating Places, Restaurants",GPC
Statement 18/07/2015 to 17/08/2015,Public Health,TRAINLINE.COM,29/07/2015,105.06,Public Transport -  Staff - General,Passenger Railways,GPC
Statement 18/07/2015 to 17/08/2015,Public Health,TRAINLINE.COM,04/08/2015,187.17,Public Transport -  Staff - General,Passenger Railways,GPC
Statement 18/07/2015 to 17/08/2015,Public Health,TRAINLINE.COM,10/08/2015,89.96,Public Transport -  Staff - General,Passenger Railways,GPC
Statement 18/07/2015 to 17/08/2015,Public Health,W M MORRISONS,17/07/2015,5.15,Provisions - General,"Grocery Stores, Supermarkets",GPC
"**Amounts stated are net of VAT, except where VAT has not been recovered.",,,,,,,
